{"text_format":"1","workbook":"xlsx","n_sheets":6,"sheets":["Schema","Setup","MIC Template","Data Definitions","Valid Data Matrix","Data"],"not_rendered":{"charts":0,"images":1,"macros":1,"external_links":5,"defined_names":390,"comments":0,"pivot_tables":0},"unopened":[],"bounds":{"document_bytes":16777216,"sheet_cells":100000,"rows_first":2000,"rows_last":500,"rows_between":2000,"halvings":0,"cell_chars":16384,"cell_head_chars":4096},"cells_cut":0,"cells_raw":0,"read":"whole","date_system":"1900"}

{"sheet":"Schema","index":0,"n_rows":155,"n_cols":1,"rows_kept":155,"cut":false,"hidden":true,"merged":[]}
["<xs:schema xmlns:xs=\"http://www.w3.org/2001/XMLSchema\" xmlns:xdb=\"http://xmlns.oracle.com/xdb\" xdb:storeVarrayAsTable=\"true\">"]
[]
["<!--Define exclusion clause element-->"]
["<xs:simpleType name=\"extype\">"]
["<xs:restriction base=\"xs:string\">"]
["<xs:pattern value=\"[1-7]?|(3[aA])|(8\\([aA-fF]\\))|9|(10)|(11)|(12)|(99)|(INCLUDED)\" />"]
["</xs:restriction>"]
["</xs:simpleType>"]
[]
["<!--Define marginal value element-->"]
["<xs:simpleType name=\"mvtype\">"]
["<xs:restriction base=\"xs:decimal\">"]
["<xs:fractionDigits value=\"5\" />"]
["</xs:restriction>"]
["</xs:simpleType>"]
[]
["<!--Define TNSP element-->"]
["<xs:simpleType name=\"tnsptype\">"]
["<xs:restriction base=\"xs:string\">"]
["<xs:enumeration value=\"ELECTRANET\" />"]
["<xs:enumeration value=\"TRANSGRID\" />"]
["<xs:enumeration value=\"TASNETWORKS\" />"]
["<xs:enumeration value=\"POWERLINK\" />"]
["<xs:enumeration value=\"AUSNET SERVICES\" />"]
["<xs:enumeration value=\"MURRAYLINK\" />"]
["<xs:enumeration value=\"DIRECTLINK\" />"]
["</xs:restriction>"]
["</xs:simpleType>"]
[]
["<!--Define network condition classifications-->"]
["<xs:simpleType name=\"constrainttype\">"]
["<xs:restriction base=\"xs:string\">"]
["<xs:enumeration value=\"SYSTEM NORMAL\" />"]
["<xs:enumeration value=\"OUTAGE\" />"]
["</xs:restriction>"]
["</xs:simpleType>"]
[]
["<!--Define outage type classifications-->"]
["<xs:simpleType name=\"plantype\">"]
["<xs:union>"]
["<xs:simpleType>"]
["<xs:restriction base=\"xs:string\">"]
["<xs:enumeration value=\"PLANNED\" />"]
["<xs:enumeration value=\"UNPLANNED\" />"]
["</xs:restriction>"]
["</xs:simpleType>"]
["<xs:simpleType>"]
["<xs:restriction base=\"xs:string\">"]
["<xs:minLength value=\"0\"/>"]
["</xs:restriction>"]
["</xs:simpleType>"]
["</xs:union>"]
["</xs:simpleType>"]
[]
["<!--Define sub category type for classification-->"]
["<xs:simpleType name=\"subcattype\">"]
["<xs:restriction base=\"xs:string\">"]
["<xs:enumeration value=\"NRM\" />"]
["<xs:enumeration value=\"NSA\" />"]
["<xs:enumeration value=\"RAMP\" />"]
["<xs:enumeration value=\"FCAS\" />"]
["<xs:enumeration value=\"RECLASS\" />"]
["<xs:enumeration value=\"NC\" />"]
["<xs:enumeration value=\"DIRECTION\" />"]
["<xs:enumeration value=\"MII\" />"]
["<xs:enumeration value=\"OTHER\" />"]
["</xs:restriction>"]
["</xs:simpleType>"]
[]
["<!--Define asset class type-->"]
["<xs:simpleType name=\"assettype\">"]
["<xs:union>"]
["<xs:simpleType>"]
["<xs:restriction base=\"xs:string\">"]
["<xs:enumeration value=\"REGULATED\" />"]
["<xs:enumeration value=\"NON-REGULATED\" />"]
["</xs:restriction>"]
["</xs:simpleType>"]
["<xs:simpleType>"]
["<xs:restriction base=\"xs:string\">"]
["<xs:minLength value=\"0\"/>"]
["</xs:restriction>"]
["</xs:simpleType>"]
["</xs:union>"]
["</xs:simpleType>"]
[]
["<!--Define weighting type-->"]
["<xs:simpleType name=\"wgtype\">"]
["<xs:restriction base=\"xs:decimal\">"]
["<xs:enumeration value=\"1\" />"]
["<xs:enumeration value=\"0.5\" />"]
["<xs:enumeration value=\"0.33\" />"]
["<xs:enumeration value=\"0\" />"]
["</xs:restriction>"]
["</xs:simpleType>"]
[]
["<!--Define rawdata type-->"]
["<xs:complexType name=\"rawdatatype\" xdb:SQLType=\"RAWDATA_T\">"]
["<xs:sequence>"]
["<xs:element name=\"outage\" type=\"outagetype\" maxOccurs=\"unbounded\" xdb:SQLName=\"OUTAGE\" />"]
["</xs:sequence>"]
["</xs:complexType>"]
[]
["<!--Define details type-->"]
["<xs:complexType name=\"detailstype\" xdb:SQLType=\"SUBDETAIL_T\">"]
["<xs:sequence>"]
["<xs:element name=\"stpis_version\" type=\"xs:decimal\" xdb:SQLName=\"STPIS_VERSION\" />"]
["<xs:element name=\"last_validated\" type=\"xs:dateTime\" xdb:SQLName=\"LAST_VALIDATED\" />"]
["<xs:element name=\"tnsp\" type=\"tnsptype\" xdb:SQLName=\"TNSP\" xdb:SQLType=\"VARCHAR2\"/>"]
["<xs:element name=\"performancemeasure_year\" type=\"xs:gYear\" xdb:SQLName=\"PMEASURE_YEAR\"/>"]
["<xs:element name=\"performancemeasure_from\" type=\"xs:dateTime\" xdb:SQLName=\"PMEASURE_FROM\" />"]
["<xs:element name=\"performancemeasure_to\" type=\"xs:dateTime\" xdb:SQLName=\"PMEASURE_TO\" />"]
["<xs:element name=\"performancemeasure_count\" type=\"xs:decimal\" xdb:SQLName=\"PMEASURE_COUNT\"/>"]
["<xs:element name=\"exclusion_count\" type=\"xs:nonNegativeInteger\" xdb:SQLName=\"EXCLUSION_COUNT\"/>"]
["<xs:element name=\"congestion_count\" type=\"xs:nonNegativeInteger\" xdb:SQLName=\"CONGESTION_COUNT\"/>"]
["<xs:element name=\"template_version\" type=\"xs:string\" xdb:SQLName=\"TEMPLATE_VERSION\" />"]
["</xs:sequence>"]
["<xs:attribute name=\"submission_id\" type=\"xs:string\" use=\"required\" xdb:SQLName=\"SUBMISSION_ID\"/>"]
["</xs:complexType>"]
[]
["<!--Define outage type-->"]
["<xs:complexType name=\"outagetype\" xdb:SQLType=\"OUTAGE_T\">"]
["<xs:sequence>"]
["<xs:element name=\"settlementdate\" type=\"xs:dateTime\" xdb:SQLName=\"SETTLEMENTDATE\" />"]
["<xs:element name=\"constraintid\" type=\"xs:string\" xdb:SQLName=\"CONSTRAINTID\" />"]
["<xs:element name=\"constraintset\" type=\"xs:string\" xdb:SQLName=\"CONSTRAINT_SET\" />"]
["<xs:element name=\"genconid_effectivedate\" type=\"xs:dateTime\" xdb:SQLName=\"GENCONID_EFFECTIVEDATE\" />"]
["<xs:element name=\"genconid_versionno\" type=\"xs:positiveInteger\" xdb:SQLName=\"GENCONID_VERSIONNO\" />"]
["<xs:element name=\"marginal_value\" type=\"mvtype\" xdb:SQLName=\"MARGINAL_VALUE\" xdb:SQLType=\"NUMBER\" />"]
["<xs:element name=\"description\" type=\"xs:string\" xdb:SQLName=\"CONSTRAINT_DESCRIPTION\" xdb:SQLType=\"CLOB\" />"]
["<xs:element name=\"network_condition\" type=\"constrainttype\" xdb:SQLName=\"NETWORK_CONDITION\" xdb:SQLType=\"VARCHAR2\" />"]
["<xs:element name=\"category\" type=\"subcattype\" xdb:SQLName=\"NETWORK_CATEGORY\" xdb:SQLType=\"VARCHAR2\" />"]
["<xs:element name=\"equipment_name\" type=\"xs:string\" xdb:SQLName=\"EQUIPMENT_NAME\" />"]
["<xs:element name=\"asset_class\" type=\"assettype\" xdb:SQLName=\"ASSET_CLASS\" xdb:SQLType=\"VARCHAR2\" />"]
["<xs:element name=\"code\" type=\"extype\" xdb:SQLName=\"CODE\" xdb:SQLType=\"VARCHAR2\" />"]
["<xs:element name=\"exclusion_detail\" type=\"xs:string\" xdb:SQLName=\"EXCLUSION_DETAIL\" xdb:SQLType=\"CLOB\" />"]
["<xs:element name=\"outage_type\" type=\"plantype\" xdb:SQLName=\"OUTAGE_TYPE\" xdb:SQLType=\"VARCHAR2\" />"]
["<xs:element name=\"weighting\" type=\"wgtype\" xdb:SQLName=\"WEIGHTING\" xdb:SQLType=\"VARCHAR2\" />"]
["<xs:element name=\"tnsp_comment\" type=\"xs:string\" xdb:SQLName=\"TNSP_COMMENT\" xdb:SQLType=\"CLOB\" />"]
["</xs:sequence>"]
["<xs:attribute name=\"outage_id\" type=\"xs:integer\" use=\"required\" xdb:SQLName=\"OUTAGE_ID\" />"]
["<xs:attribute name=\"submission_id\" type=\"xs:string\" use=\"required\" xdb:SQLName=\"OUTAGE_SUBMISSION_ID\" />"]
["</xs:complexType>"]
[]
["<!--Define root application element type-->"]
["<xs:complexType name=\"apptype\" xdb:SQLType=\"MICAPP_T\">"]
["<xs:sequence>"]
["<xs:element name=\"details\" type=\"detailstype\" />"]
["<xs:element name=\"outages\" type=\"rawdatatype\" />"]
["</xs:sequence>"]
["</xs:complexType>"]
[]
["<xs:element name=\"application\" type=\"apptype\" xdb:defaultTable=\"MIC_SUBMISSION\" />"]
[]
["</xs:schema>"]

{"sheet":"Setup","index":1,"n_rows":8,"n_cols":8,"rows_kept":8,"cut":false,"hidden":true,"merged":[]}
["TNSP","SCHEME","ENUMERATORS","CDATA","SUBMISSION_ID","TEMPLATEVER","EXCELVER","OSVER"]
["AUSNET SERVICES",2,"NETWORK CONDITION","CONSTRAINTID",{"$f":"'MIC Template'!N15 & \"V\" & TRUNC(TEXT('MIC Template'!N16,\"#.#\"),1) & \"_\" &TEXT(IF(ISBLANK('MIC Template'!N69),NOW(),'MIC Template'!N69),\"YYYYMMDDHHMMSS\")","v":"TASNETWORKSV5_20230130161447"},"AERMIC_VER7",{"$f":"INFO(\"RELEASE\")","v":"16.0"},{"$f":"INFO(\"OSVERSION\")","v":"Windows (32-bit) NT :.00"}]
["DIRECTLINK",3,"CATEGORY","CONSTRAINTSET"]
["ELECTRANET",4,"ASSET CLASS","DESCRIPTION"]
["MURRAYLINK",4.0999999999999996,"OUTAGE TYPE","EQUIPMENT_NAME"]
["POWERLINK",5,"CODE","EXCLUSION_DETAIL"]
["TASNETWORKS",null,null,"TNSP_COMMENT"]
["TRANSGRID"]

{"sheet":"MIC Template","index":2,"n_rows":69,"n_cols":16,"rows_kept":69,"cut":false,"hidden":false,"merged":[[18,14,18,15],[18,10,18,12],[29,11,34,15],[35,10,35,15],[37,10,37,12],[39,10,39,12],[40,10,40,12],[68,10,68,12],[37,13,37,15],[39,13,39,15],[40,13,40,15],[68,13,68,15],[38,13,38,14],[38,10,38,12],[42,10,42,12],[42,13,42,15],[43,10,43,15],[44,10,44,12],[44,13,44,14],[45,10,45,12],[46,10,46,12],[0,5,0,22],[7,5,7,22],[13,13,13,15],[13,10,13,12],[14,10,14,12],[8,10,8,15],[15,10,15,12],[16,10,16,12],[17,10,17,12],[14,13,14,15],[15,13,15,15],[16,13,16,15],[17,14,17,15],[47,10,47,12],[49,10,49,12],[50,10,50,12],[51,10,51,12],[52,10,52,12],[48,10,48,12],[53,10,53,12],[54,10,54,12],[55,10,55,12],[56,10,56,12],[57,10,57,12],[58,10,58,12],[59,10,59,12],[63,10,63,12],[65,10,65,12],[64,10,64,12],[61,10,61,12],[60,10,60,12],[62,10,62,12],[45,13,45,14],[46,13,46,14],[47,13,47,14],[49,13,49,14],[50,13,50,14],[48,13,48,14],[51,13,51,14],[52,13,52,14],[53,13,53,14],[54,13,54,14],[55,13,55,14],[64,13,64,14],[65,13,65,14],[56,13,56,14],[57,13,57,14],[58,13,58,14],[59,13,59,14],[63,13,63,14],[61,13,61,14],[60,13,60,14],[62,13,62,14]]}
[]
[]
[]
[]
[]
[]
[]
[null,null,null,null,null,{"$f":"\"Market Impact Parameter Data Template V\" & RIGHT(Setup!$F$2,LEN(Setup!$F$2)-(FIND(\"VER\",Setup!$F$2)+2))","v":"Market Impact Parameter Data Template V7"}]
[]
[]
[null,null,null,null,null,null,null,null,null,"Steps for filling out this template"]
[null,null,null,null,null,null,null,null,null,1,"Complete  details in Table 1"]
[]
[null,null,null,null,null,null,null,null,null,null,"Table 1",null,null,"INPUT"]
[null,null,null,null,null,null,null,null,null,null,"TNSP",null,null,"TASNETWORKS"]
[null,null,null,null,null,null,null,null,null,null,"Scheme Version",null,null,5]
[null,null,null,null,null,null,null,null,null,null,"Performance Year",null,null,2015]
[null,null,null,null,null,null,null,null,null,null,"Performance Period",null,null,"From","2015-01-01"]
[null,null,null,null,null,null,null,null,null,null,null,null,null,"To","2015-12-31"]
[]
[null,null,null,null,null,null,null,null,null,2,"Enter data into the \"Data\" worksheet."]
[null,null,null,null,null,null,null,null,null,null,"Refer to the ","data definitions ","for valid data formats"]
[]
[null,null,null,null,null,null,null,null,null,3,"Complete the check list to confirm the following:"]
[null,null,null,null,null,null,null,null,null,null,"Data has been sourced from MCC constraint solution table and is on a 5-minute resolution"]
[null,null,null,null,null,null,null,null,null,null,"Evidence has been collated for all exclusion claims to be attached to the submission"]
[null,null,null,null,null,null,null,null,null,null,"All inclusion counts have a code of \"INCLUDED\" and a positive weighting"]
[]
[null,null,null,null,null,null,null,null,null,4,"Click Validate Data button"]
[null,null,null,null,null,null,null,null,null,null,null,"An error message will appear if data is invalid. The rows that contain invalid data will be highlighted yellow.  Errors will need to be amended in accordance with the data field requirements before validation can be completed. Data validation may take some time to complete. During validation, a progress indicator will appear to show progress of validation. "]
[]
[]
[]
[]
[]
[null,null,null,null,null,null,null,null,null,null,"Please do not close the spreadsheet during validation. "]
[]
[null,null,null,null,null,null,null,null,null,null,"Table 2",null,null,"OUTPUT"]
[null,null,null,null,null,null,null,null,null,null,"Performance measure",null,null,null,null,{"$f":"SUM(VALUE(INDIRECT(\"Data!$Q2:$Q\" & ROWS(Data!$Q:$Q))))","v":247}]
[null,null,null,null,null,null,null,null,null,null,"Exclusion count",null,null,{"$f":"SUMPRODUCT(--(LEN(TRIM(Data!$N:$N))>0))-SUMPRODUCT(--(Data!$N:$N=\"99\"))-SUMPRODUCT(--(Data!$N:$N=\"INCLUDED\"))-1","v":0}]
[null,null,null,null,null,null,null,null,null,null,"Congestion count",null,null,{"$f":"SUMPRODUCT(--(LEN(TRIM(Data!$N:$N))>0))-SUMPRODUCT(--(Data!$N:$N=\"99\"))-1","v":247}]
[]
[null,null,null,null,null,null,null,null,null,null,"Table 3",null,null,"TNSP SUBMISSION"]
[null,null,null,null,null,null,null,null,null,null,{"$f":"IF(LEN($N$17)<4,\"\",\"Year: \" &$N$17) & IF(LEN($N$16)<1,\"\",\" Version: \" &$N$16)","v":"Year: 2015 Version: 5"}]
[null,null,null,null,null,null,null,null,null,null,"Code",null,null,"Count DIs",null,"Sum weight"]
[null,null,null,null,null,null,null,null,null,null,1,null,null,{"$f":"COUNTIFS(Data!$N$2:$N$1048576,$K46)","v":0},null,{"$f":"SUMIFS(Data!$Q$2:$Q$1048576,Data!$N$2:$N$1048576,$K46)","v":0}]
[null,null,null,null,null,null,null,null,null,null,2,null,null,{"$f":"COUNTIFS(Data!$N$2:$N$1048576,$K47)","v":0},null,{"$f":"SUMIFS(Data!$Q$2:$Q$1048576,Data!$N$2:$N$1048576,$K47)","v":0}]
[null,null,null,null,null,null,null,null,null,null,3,null,null,{"$f":"COUNTIFS(Data!$N$2:$N$1048576,$K48)","v":0},null,{"$f":"SUMIFS(Data!$Q$2:$Q$1048576,Data!$N$2:$N$1048576,$K48)","v":0}]
[null,null,null,null,null,null,null,null,null,null,"3A",null,null,{"$f":"COUNTIFS(Data!$N$2:$N$1048576,$K49)","v":0},null,{"$f":"SUMIFS(Data!$Q$2:$Q$1048576,Data!$N$2:$N$1048576,$K49)","v":0}]
[null,null,null,null,null,null,null,null,null,null,4,null,null,{"$f":"COUNTIFS(Data!$N$2:$N$1048576,$K50)","v":0},null,{"$f":"SUMIFS(Data!$Q$2:$Q$1048576,Data!$N$2:$N$1048576,$K50)","v":0}]
[null,null,null,null,null,null,null,null,null,null,5,null,null,{"$f":"COUNTIFS(Data!$N$2:$N$1048576,$K51)","v":0},null,{"$f":"SUMIFS(Data!$Q$2:$Q$1048576,Data!$N$2:$N$1048576,$K51)","v":0}]
[null,null,null,null,null,null,null,null,null,null,6,null,null,{"$f":"COUNTIFS(Data!$N$2:$N$1048576,$K52)","v":0},null,{"$f":"SUMIFS(Data!$Q$2:$Q$1048576,Data!$N$2:$N$1048576,$K52)","v":0}]
[null,null,null,null,null,null,null,null,null,null,7,null,null,{"$f":"COUNTIFS(Data!$N$2:$N$1048576,$K53)","v":0},null,{"$f":"SUMIFS(Data!$Q$2:$Q$1048576,Data!$N$2:$N$1048576,$K53)","v":0}]
[null,null,null,null,null,null,null,null,null,null,"8(a)",null,null,{"$f":"COUNTIFS(Data!$N$2:$N$1048576,UPPER($K54))","v":0},null,{"$f":"SUMIFS(Data!$Q$2:$Q$1048576,Data!$N$2:$N$1048576,$K54)","v":0}]
[null,null,null,null,null,null,null,null,null,null,"8(b)",null,null,{"$f":"COUNTIFS(Data!$N$2:$N$1048576,UPPER($K55))","v":0},null,{"$f":"SUMIFS(Data!$Q$2:$Q$1048576,Data!$N$2:$N$1048576,$K55)","v":0}]
[null,null,null,null,null,null,null,null,null,null,"8(c)",null,null,{"$f":"COUNTIFS(Data!$N$2:$N$1048576,UPPER($K56))","v":0},null,{"$f":"SUMIFS(Data!$Q$2:$Q$1048576,Data!$N$2:$N$1048576,$K56)","v":0}]
[null,null,null,null,null,null,null,null,null,null,"8(d)",null,null,{"$f":"COUNTIFS(Data!$N$2:$N$1048576,UPPER($K57))","v":0},null,{"$f":"SUMIFS(Data!$Q$2:$Q$1048576,Data!$N$2:$N$1048576,$K57)","v":0}]
[null,null,null,null,null,null,null,null,null,null,"8(e)",null,null,{"$f":"COUNTIFS(Data!$N$2:$N$1048576,UPPER($K58))","v":0},null,{"$f":"SUMIFS(Data!$Q$2:$Q$1048576,Data!$N$2:$N$1048576,$K58)","v":0}]
[null,null,null,null,null,null,null,null,null,null,"8(f)",null,null,{"$f":"COUNTIFS(Data!$N$2:$N$1048576,UPPER($K59))","v":0},null,{"$f":"SUMIFS(Data!$Q$2:$Q$1048576,Data!$N$2:$N$1048576,$K59)","v":0}]
[null,null,null,null,null,null,null,null,null,null,9,null,null,{"$f":"COUNTIFS(Data!$N$2:$N$1048576,$K60)","v":0},null,{"$f":"SUMIFS(Data!$Q$2:$Q$1048576,Data!$N$2:$N$1048576,$K60)","v":0}]
[null,null,null,null,null,null,null,null,null,null,10,null,null,{"$f":"COUNTIFS(Data!$N$2:$N$1048576,$K61)","v":0},null,{"$f":"SUMIFS(Data!$Q$2:$Q$1048576,Data!$N$2:$N$1048576,$K61)","v":0}]
[null,null,null,null,null,null,null,null,null,null,11,null,null,{"$f":"COUNTIFS(Data!$N$2:$N$1048576,$K62)","v":0},null,{"$f":"SUMIFS(Data!$Q$2:$Q$1048576,Data!$N$2:$N$1048576,$K62)","v":0}]
[null,null,null,null,null,null,null,null,null,null,12,null,null,{"$f":"COUNTIFS(Data!$N$2:$N$1048576,$K63)","v":0},null,{"$f":"SUMIFS(Data!$Q$2:$Q$1048576,Data!$N$2:$N$1048576,$K63)","v":0}]
[null,null,null,null,null,null,null,null,null,null,99,null,null,{"$f":"COUNTIFS(Data!$N$2:$N$1048576,$K64)","v":0},null,{"$f":"SUMIFS(Data!$Q$2:$Q$1048576,Data!$N$2:$N$1048576,$K64)","v":0}]
[null,null,null,null,null,null,null,null,null,null,"INCLUDED",null,null,{"$f":"COUNTIFS(Data!$N$2:$N$1048576,$K65)","v":247},null,{"$f":"SUMIFS(Data!$Q$2:$Q$1048576,Data!$N$2:$N$1048576,$K65)","v":247}]
[null,null,null,null,null,null,null,null,null,null,"Total",null,null,{"$f":"SUM($N$46:$O$65)","v":247},null,{"$f":"SUM($P$46:$P$65)","v":247}]
[]
[null,null,null,null,null,null,null,null,null,5,"Submit to AER ONLY if the data was successfully validated"]
[null,null,null,null,null,null,null,null,null,null,"Last validation",null,null,"2023-01-30T16:14:47"]

{"sheet":"Data Definitions","index":3,"n_rows":58,"n_cols":4,"rows_kept":58,"cut":false,"hidden":false,"merged":[]}
["Template instructions and data definitions"]
["What must be submitted?","- TNSP must provide performance data in this workbook in the 'Data' tab. "]
[null,"- The data submitted must conform to the data field requirements set out below. "]
[null,"- Data must be validated prior to the data being submitted to the AER for assessment. "]
[null,"- If the data does not conform to the field requirements then the data will not be able to be validated. "]
[null,"- Submit ALL binding constraints with a marginal value > $10/MWh used to manage TNSP network."]
[null,"- The data must be submitted in a 5 minute resolution and sourced from AEMO's Market Management System MCC_CONSTRAINTSOLUTION table (MCC table).   "]
[null,"- For network outage conditions, if an exclusion is applicable, TNSPs may enter the exclusion clause number in the 'CODE' field. Otherwise the code INCLUDED must be used. "]
[null,"-  The data submitted must fall within the performance period defined in the MIC Template tab. The first valid date time is 00:05 of the day defined the ‘from’ input period. "]
[null,"The last valid date time is 00:00 of the following day defined in the ‘to’ input period."]
[]
["Calcuation of performance measure:","All dispatch intervals with a marginal value greater than $10/MWh, classified as an OUTAGE and identified as INCLUDED, will be used to calculate the TNSP's performance measure. "]
[]
["Data field requirements:","Field","Description","Accepted values"]
[null,"SETTLEMENT DATE","Settlement date/time of the binding network constraint as detailed in the AEMO Market Management System MCC_CONSTRAINTSOLUTION table (MCC table)","dd/mm/yyyy hh:mm\nFirst accepted time value for the performance period is 00:05\n"]
[null,"CONSTRAINT ID","Constraint identifier from the MCC table","text"]
[null,"CONSTRAINT SET","Constraint set refers to the GENCONSET for a constraint.  These are the constraint set(s) that contain the relevant constraint ID that were invoked at the time of the binding constraint. ","text. Multiple values allowed, delimit with semi-colon e.g. V_SET1;V_SET2"]
[null,"EFFECTIVE DATE","Effective date of the constraint ID for the settlement date/time","dd/mm/yyyy hh:mm"]
[null,"VERSION NUMBER","Version number of the binding network constraint for the settlement date/time","integer"]
[null,"MARGINAL VALUE","Marginal value up to 5 decimal places (to be consistent with the MCC table) of the  binding network constraint for the settlement date/time","decimal to 5 significant figures"]
[null,"CONSTRAINT DESCRIPTION","Description of the constraint ID from the MCC table","text"]
[null,"NETWORK CONDITION","Classification of the network constraint as \"System Normal\" or \"Outage\" ","SYSTEM NORMAL | OUTAGE"]
[null,"CATEGORY","Additional categorisation of the network constraint as one of:","Note: this field cannot be left blank"]
[null,null,"-negative residues management ","NRM"]
[null,null,"-network support agreement","NSA"]
[null,null,"-ramping constraint","RAMP"]
[null,null,"-frequency control constraint","FCAS "]
[null,null,"-reclassification","RECLASS"]
[null,null,"-non-conformance","NC"]
[null,null,"-AEMO direction","DIRECTION"]
[null,null,"-manifestly incorrect input","MII "]
[null,null,"-none of the above","OTHER"]
[null,"OUTAGE EQUIPMENT","The equipment that the constraint is invoked to manage","text"]
[null,"ASSET CLASS","Identify whether the equipment is either a regulated asset or non-regulated asset.  If the equipment is in an adjoining region and the TNSP is uncertain whether the equipment is a regulated asset or non-regulated asset, the TNSP should identify it as a regulated asset. Please also indicate in the comments field that the equipment is in an adjoining region. If the equipment is in the TNSP's region, but is not part of the TNSP's network, identify the asset class as non-regulated and indicate in the comments field the type of equipment it is (i.e. generator) and who the asset owner is. ","REGULATED | NON-REGULATED "]
[null,"CODE","Provide the relevant exclusion code under version 2, 3, 4, 4.1 or 5 of the scheme in the specified format, or identify whether it is a non-inclusion in the scheme or an inclusion in the performance count. ","This field cannot be left blank for outages. It must be left blank for system normal conditions."]
[null,null,"Valid exclusion codes are: "]
[null,null,"1 to 7","1 to 7"]
[null,null,"3A","3A (only valid in version 5)"]
[null,null,"8(a)","8(a)"]
[null,null,"8(b)","8(b)"]
[null,null,"8(c) ","8(c) "]
[null,null,"8(d)","8(d)"]
[null,null,"8(e)","8(e)"]
[null,null,"8(f)","8(f)"]
[null,null,9,"9 (only valid in version 4, 4.1 and 5)"]
[null,null,"10 to 12","10 to 12 (only valid in version 5)"]
[null,null,"Or:"]
[null,null,"Non-inclusion. Non-inclusions are binding constraints with MV >$10MWh that are not part of the scheme or not relevant to the TNSP's performance count. Examples include constraints for: ramping,  non-conformance, AEMO direction and negative residues management.  FCAS constraints may be an inclusion or a non-inclusion, depending on whether it was invoked to manage an outage. See the Valid Data Matrix worksheet for more information on where to use code 99.",99]
[null,null,"Or:"]
[null,null,"Inclusion. All inclusions must be identified as included","INCLUDED"]
[null,"EXCLUSION DETAIL","Free text for TNSP to provide details on the exclusion claim (i.e. reference to supportive evidence or outage details). If there is an exclusion code specified, this field must be filled in.","text"]
[null,"OUTAGE TYPE","Where the network condition is \"OUTAGE\", the outage type must be classified as \"PLANNED\" or \"UNPLANNED\". Unplanned outages are outages taken with less than 24 hours notice to AEMO. ","PLANNED | UNPLANNED"]
[null,"WEIGHTING","The following values are valid for weighting:"]
[null,null,"-the count is wholly attributed to TNSP",1]
[null,null,"-the count is shared with one other TNSP",0.5]
[null,null,"-the count is shared with two other TNSPs",0.33]
[null,null,"-not included in the performance count. It must have a code of: \nexclusion code 1 to 7, 3A, 8(a) to 8(f), 9 to 12; or \nnon-inclusion code of 99.",0]
[null,"TNSP COMMENT","Provide any further information that will assist the AER in its assessment of the TNSP data","text"]

{"sheet":"Valid Data Matrix","index":4,"n_rows":33,"n_cols":12,"rows_kept":33,"cut":false,"hidden":false,"merged":[[29,0,29,10],[30,0,30,10],[31,0,31,10],[32,0,32,10],[6,0,7,0],[6,1,7,1],[6,2,6,10],[8,0,25,0]]}
["Valid category-code data matrix"]
["This matrix shows the valid entries for a specific category-code combination. For example:"]
["There is no valid entry for category=NRM (network residue management) and code=1 (force-majeure event)"]
["There is a valid combination for category=OTHER and code=1 (force-majeure event) and the weight must be zero. Evidence must be provided."]
["There is a valid combination for category=NRM (network residue management) and code=99 with weight=0"]
[]
["NETWORK CONDITION \n= OUTAGE","FIELD=Code","Field=Category"]
[null,null,"NRM","NSA","RAMP","FCAS","RECLASS","NC","DIRECTION","MII","OTHER","Comments"]
["STPIS exclusion clause",1,null,null,null,null,null,null,null,null,null,"Force majeure event"]
[null,2,null,null,null,null,null,null,null,null,null,"Reclassification must satisfy NER cl 4.2.3A and NER cl 4.2.3B"]
[null,3,null,null,null,null,null,null,null,null,null,"Version 4 and 4.1 allows only CODE=3 with OUTAGE_TYPE=UNPLANNED  \nVersion 2, 3 and 5 allow CODE=3 with both PLANNED or UNPLANNED outages  "]
[null,"3A",null,null,null,null,null,null,null,null,null,"This code is only applicable to version 5. Only allows CODE=3A with OUTAGE_TYPE=PLANNED"]
[null,4,null,null,null,null,null,null,null,null,null,"Outage on NON-REGULATED asset"]
[null,5,null,null,null,null,null,null,null,null,null,"Outage for PERSONAL SAFETY reasons"]
[null,6,null,null,null,null,null,null,null,null,null,"AEMO DIRECTION for operational security reasons"]
[null,7,null,null,null,null,null,null,null,null,null,"Network service agreement"]
[null,"8(a)",null,null,null,null,null,null,null,null,null,"Manifestly incorrect input must satisfy NER cl 3.9.2b"]
[null,"8(b)",null,null,null,null,null,null,null,null,null,"AEMO invoked wrong constraint"]
[null,"8(c)",null,null,null,null,null,null,null,null,null,"AEMO scheduling error"]
[null,"8(d)",null,null,null,null,null,null,null,null,null,"Must satisfy NER cl 3.12(a) "]
[null,"8(e)",null,null,null,null,null,null,null,null,null,"Must satisfy NER cl 3.14.3"]
[null,"8(f)",null,null,null,null,null,null,null,null,null,"Must satisfy NER cl 3.14.2"]
[null,9,null,null,null,null,null,null,null,null,null,"Network reconfiguration. This code is not applicable to version 2 and  3 "]
[null,10,null,null,null,null,null,null,null,null,null,"Ramping constraints. Applies to version 5 only."]
[null,11,null,null,null,null,null,null,null,null,null,"Transmission connection agreements. Applies to version 5 only."]
[null,12,null,null,null,null,null,null,null,null,null,"Internetwork power tests for NCIPAP. Applies to version 5 only."]
["Non-inclusion",99,null,null,null,null,null,null,null,null,null,"Field=FCAS or OTHER may be relevant to other TNSPs. '99' for RAMP category only applies to version 4.x and below"]
["Inclusion","INCLUDED",null,null,null,null,null,null,null,null,null,"The sum of the weights is the inclusion count"]
[]
["category-code combination is NOT valid"]
["category-code combination is valid but weight must equal 0."]
["category-code combination is valid but weight must equal 0. Supporting evidence must be provided."]
["category-code combination is valid but weight must equal 0.33 or 0.5 or 1 "]

{"sheet":"Data","index":5,"n_rows":249,"n_cols":18,"rows_kept":249,"cut":false,"hidden":false,"merged":[]}
["OUTAGE ID","SUBMISSION ID","SETTLEMENT DATE","CONSTRAINT ID","CONSTRAINT SET","EFFECTIVE DATE","VERSION NUMBER","MARGINAL VALUE","CONSTRAINT DESCRIPTION","NETWORK CONDITION","CATEGORY","OUTAGE EQUIPMENT","ASSET CLASS","CODE","EXCLUSION DETAIL","OUTAGE TYPE","WEIGHTING","TNSP COMMENT"]
[1,"TASNETWORKSV5_20230130160736","2015-01-15T08:20:00","F_T+COGT_TL_L6","F-T-COGT","2013-08-21",1,332.33251999999999,"Out = one Comalco to George Town line, Tasmania Lower 6 sec requirement for the loss of the remaining Comalco to George Town line, Basslink unable to transfer FCAS","SYSTEM NORMAL","FCAS",null,"REGULATED",null,"No outage",null,0,"no outage"]
[2,"TASNETWORKSV5_20230130160736","2015-02-09T05:30:00","T::T_HA_GT_PM_4","T-GTHA","2014-07-31",1,-54.076000000000001,"Out = Hadspen to George Town or Hadspen to Palmerston 220 kV line, prevent poorly damped TAS North - South oscillations following fault and trip of Palmerston to Sheffield 220 kV line, Tamar CCGT out of service.","OUTAGE","OTHER","Hadspen GeorgeTown 2 220kV LINE","REGULATED","INCLUDED",null,"PLANNED",1,"126385-OUT1"]
[3,"TASNETWORKSV5_20230130160736","2015-02-09T05:35:00","T::T_HA_GT_PM_4","T-GTHA","2014-07-31",1,-52.70655,"Out = Hadspen to George Town or Hadspen to Palmerston 220 kV line, prevent poorly damped TAS North - South oscillations following fault and trip of Palmerston to Sheffield 220 kV line, Tamar CCGT out of service.","OUTAGE","OTHER","Hadspen GeorgeTown 2 220kV LINE","REGULATED","INCLUDED",null,"PLANNED",1,"126385-OUT1"]
[4,"TASNETWORKSV5_20230130160736","2015-02-09T05:40:00","T::T_HA_GT_PM_4","T-GTHA","2014-07-31",1,-49.626660000000001,"Out = Hadspen to George Town or Hadspen to Palmerston 220 kV line, prevent poorly damped TAS North - South oscillations following fault and trip of Palmerston to Sheffield 220 kV line, Tamar CCGT out of service.","OUTAGE","OTHER","Hadspen GeorgeTown 2 220kV LINE","REGULATED","INCLUDED",null,"PLANNED",1,"126385-OUT1"]
[5,"TASNETWORKSV5_20230130160736","2015-02-09T05:45:00","T::T_HA_GT_PM_4","T-GTHA","2014-07-31",1,-49.346060000000001,"Out = Hadspen to George Town or Hadspen to Palmerston 220 kV line, prevent poorly damped TAS North - South oscillations following fault and trip of Palmerston to Sheffield 220 kV line, Tamar CCGT out of service.","OUTAGE","OTHER","Hadspen GeorgeTown 2 220kV LINE","REGULATED","INCLUDED",null,"PLANNED",1,"126385-OUT1"]
[6,"TASNETWORKSV5_20230130160736","2015-02-09T05:50:00","T::T_HA_GT_PM_4","T-GTHA","2014-07-31",1,-49.103870000000001,"Out = Hadspen to George Town or Hadspen to Palmerston 220 kV line, prevent poorly damped TAS North - South oscillations following fault and trip of Palmerston to Sheffield 220 kV line, Tamar CCGT out of service.","OUTAGE","OTHER","Hadspen GeorgeTown 2 220kV LINE","REGULATED","INCLUDED",null,"PLANNED",1,"126385-OUT1"]
[7,"TASNETWORKSV5_20230130160736","2015-02-09T05:55:00","T::T_HA_GT_PM_4","T-GTHA","2014-07-31",1,-49.159799999999997,"Out = Hadspen to George Town or Hadspen to Palmerston 220 kV line, prevent poorly damped TAS North - South oscillations following fault and trip of Palmerston to Sheffield 220 kV line, Tamar CCGT out of service.","OUTAGE","OTHER","Hadspen GeorgeTown 2 220kV LINE","REGULATED","INCLUDED",null,"PLANNED",1,"126385-OUT1"]
[8,"TASNETWORKSV5_20230130160736","2015-02-09T06:00:00","T::T_HA_GT_PM_4","T-GTHA","2014-07-31",1,-43.05641,"Out = Hadspen to George Town or Hadspen to Palmerston 220 kV line, prevent poorly damped TAS North - South oscillations following fault and trip of Palmerston to Sheffield 220 kV line, Tamar CCGT out of service.","OUTAGE","OTHER","Hadspen GeorgeTown 2 220kV LINE","REGULATED","INCLUDED",null,"PLANNED",1,"126385-OUT1"]
[9,"TASNETWORKSV5_20230130160736","2015-02-09T06:05:00","T::T_HA_GT_PM_4","T-GTHA","2014-07-31",1,-48.146599999999999,"Out = Hadspen to George Town or Hadspen to Palmerston 220 kV line, prevent poorly damped TAS North - South oscillations following fault and trip of Palmerston to Sheffield 220 kV line, Tamar CCGT out of service.","OUTAGE","OTHER","Hadspen GeorgeTown 2 220kV LINE","REGULATED","INCLUDED",null,"PLANNED",1,"126385-OUT1"]
[10,"TASNETWORKSV5_20230130160736","2015-02-09T06:10:00","T::T_HA_GT_PM_4","T-GTHA","2014-07-31",1,-37.297629999999998,"Out = Hadspen to George Town or Hadspen to Palmerston 220 kV line, prevent poorly damped TAS North - South oscillations following fault and trip of Palmerston to Sheffield 220 kV line, Tamar CCGT out of service.","OUTAGE","OTHER","Hadspen GeorgeTown 2 220kV LINE","REGULATED","INCLUDED",null,"PLANNED",1,"126385-OUT1"]
[11,"TASNETWORKSV5_20230130160736","2015-02-09T06:15:00","T::T_HA_GT_PM_4","T-GTHA","2014-07-31",1,-36.921819999999997,"Out = Hadspen to George Town or Hadspen to Palmerston 220 kV line, prevent poorly damped TAS North - South oscillations following fault and trip of Palmerston to Sheffield 220 kV line, Tamar CCGT out of service.","OUTAGE","OTHER","Hadspen GeorgeTown 2 220kV LINE","REGULATED","INCLUDED",null,"PLANNED",1,"126385-OUT1"]
[12,"TASNETWORKSV5_20230130160736","2015-02-09T06:20:00","T::T_HA_GT_PM_4","T-GTHA","2014-07-31",1,-36.730989999999998,"Out = Hadspen to George Town or Hadspen to Palmerston 220 kV line, prevent poorly damped TAS North - South oscillations following fault and trip of Palmerston to Sheffield 220 kV line, Tamar CCGT out of service.","OUTAGE","OTHER","Hadspen GeorgeTown 2 220kV LINE","REGULATED","INCLUDED",null,"PLANNED",1,"126385-OUT1"]
[13,"TASNETWORKSV5_20230130160736","2015-02-09T06:25:00","T::T_HA_GT_PM_4","T-GTHA","2014-07-31",1,-34.3889,"Out = Hadspen to George Town or Hadspen to Palmerston 220 kV line, prevent poorly damped TAS North - South oscillations following fault and trip of Palmerston to Sheffield 220 kV line, Tamar CCGT out of service.","OUTAGE","OTHER","Hadspen GeorgeTown 2 220kV LINE","REGULATED","INCLUDED",null,"PLANNED",1,"126385-OUT1"]
[14,"TASNETWORKSV5_20230130160736","2015-02-09T06:30:00","T::T_HA_GT_PM_4","T-GTHA","2014-07-31",1,-32.26661,"Out = Hadspen to George Town or Hadspen to Palmerston 220 kV line, prevent poorly damped TAS North - South oscillations following fault and trip of Palmerston to Sheffield 220 kV line, Tamar CCGT out of service.","OUTAGE","OTHER","Hadspen GeorgeTown 2 220kV LINE","REGULATED","INCLUDED",null,"PLANNED",1,"126385-OUT1"]
[15,"TASNETWORKSV5_20230130160736","2015-02-09T06:35:00","T::T_HA_GT_PM_4","T-GTHA","2014-07-31",1,-27.461300000000001,"Out = Hadspen to George Town or Hadspen to Palmerston 220 kV line, prevent poorly damped TAS North - South oscillations following fault and trip of Palmerston to Sheffield 220 kV line, Tamar CCGT out of service.","OUTAGE","OTHER","Hadspen GeorgeTown 2 220kV LINE","REGULATED","INCLUDED",null,"PLANNED",1,"126385-OUT1"]
[16,"TASNETWORKSV5_20230130160736","2015-02-09T06:40:00","T::T_HA_GT_PM_4","T-GTHA","2014-07-31",1,-26.00995,"Out = Hadspen to George Town or Hadspen to Palmerston 220 kV line, prevent poorly damped TAS North - South oscillations following fault and trip of Palmerston to Sheffield 220 kV line, Tamar CCGT out of service.","OUTAGE","OTHER","Hadspen GeorgeTown 2 220kV LINE","REGULATED","INCLUDED",null,"PLANNED",1,"126385-OUT1"]
[17,"TASNETWORKSV5_20230130160736","2015-02-09T06:45:00","T::T_HA_GT_PM_4","T-GTHA","2014-07-31",1,-25.97466,"Out = Hadspen to George Town or Hadspen to Palmerston 220 kV line, prevent poorly damped TAS North - South oscillations following fault and trip of Palmerston to Sheffield 220 kV line, Tamar CCGT out of service.","OUTAGE","OTHER","Hadspen GeorgeTown 2 220kV LINE","REGULATED","INCLUDED",null,"PLANNED",1,"126385-OUT1"]
[18,"TASNETWORKSV5_20230130160736","2015-02-09T06:50:00","T::T_HA_GT_PM_4","T-GTHA","2014-07-31",1,-25.905650000000001,"Out = Hadspen to George Town or Hadspen to Palmerston 220 kV line, prevent poorly damped TAS North - South oscillations following fault and trip of Palmerston to Sheffield 220 kV line, Tamar CCGT out of service.","OUTAGE","OTHER","Hadspen GeorgeTown 2 220kV LINE","REGULATED","INCLUDED",null,"PLANNED",1,"126385-OUT1"]
[19,"TASNETWORKSV5_20230130160736","2015-02-09T06:55:00","T::T_HA_GT_PM_4","T-GTHA","2014-07-31",1,-25.205950000000001,"Out = Hadspen to George Town or Hadspen to Palmerston 220 kV line, prevent poorly damped TAS North - South oscillations following fault and trip of Palmerston to Sheffield 220 kV line, Tamar CCGT out of service.","OUTAGE","OTHER","Hadspen GeorgeTown 2 220kV LINE","REGULATED","INCLUDED",null,"PLANNED",1,"126385-OUT1"]
[20,"TASNETWORKSV5_20230130160736","2015-02-09T07:00:00","T::T_HA_GT_PM_4","T-GTHA","2014-07-31",1,-23.476050000000001,"Out = Hadspen to George Town or Hadspen to Palmerston 220 kV line, prevent poorly damped TAS North - South oscillations following fault and trip of Palmerston to Sheffield 220 kV line, Tamar CCGT out of service.","OUTAGE","OTHER","Hadspen GeorgeTown 2 220kV LINE","REGULATED","INCLUDED",null,"PLANNED",1,"126385-OUT1"]
[21,"TASNETWORKSV5_20230130160736","2015-02-09T07:05:00","T::T_HA_GT_PM_4","T-GTHA","2014-07-31",1,-26.279050000000002,"Out = Hadspen to George Town or Hadspen to Palmerston 220 kV line, prevent poorly damped TAS North - South oscillations following fault and trip of Palmerston to Sheffield 220 kV line, Tamar CCGT out of service.","OUTAGE","OTHER","Hadspen GeorgeTown 2 220kV LINE","REGULATED","INCLUDED",null,"PLANNED",1,"126385-OUT1"]
[22,"TASNETWORKSV5_20230130160736","2015-02-09T07:10:00","T::T_HA_GT_PM_4","T-GTHA","2014-07-31",1,-26.37275,"Out = Hadspen to George Town or Hadspen to Palmerston 220 kV line, prevent poorly damped TAS North - South oscillations following fault and trip of Palmerston to Sheffield 220 kV line, Tamar CCGT out of service.","OUTAGE","OTHER","Hadspen GeorgeTown 2 220kV LINE","REGULATED","INCLUDED",null,"PLANNED",1,"126385-OUT1"]
[23,"TASNETWORKSV5_20230130160736","2015-02-09T07:15:00","T::T_HA_GT_PM_4","T-GTHA","2014-07-31",1,-27.331140000000001,"Out = Hadspen to George Town or Hadspen to Palmerston 220 kV line, prevent poorly damped TAS North - South oscillations following fault and trip of Palmerston to Sheffield 220 kV line, Tamar CCGT out of service.","OUTAGE","OTHER","Hadspen GeorgeTown 2 220kV LINE","REGULATED","INCLUDED",null,"PLANNED",1,"126385-OUT1"]
[24,"TASNETWORKSV5_20230130160736","2015-02-09T07:20:00","T::T_HA_GT_PM_4","T-GTHA","2014-07-31",1,-26.956869999999999,"Out = Hadspen to George Town or Hadspen to Palmerston 220 kV line, prevent poorly damped TAS North - South oscillations following fault and trip of Palmerston to Sheffield 220 kV line, Tamar CCGT out of service.","OUTAGE","OTHER","Hadspen GeorgeTown 2 220kV LINE","REGULATED","INCLUDED",null,"PLANNED",1,"126385-OUT1"]
[25,"TASNETWORKSV5_20230130160736","2015-02-09T07:25:00","T::T_HA_GT_PM_4","T-GTHA","2014-07-31",1,-27.18085,"Out = Hadspen to George Town or Hadspen to Palmerston 220 kV line, prevent poorly damped TAS North - South oscillations following fault and trip of Palmerston to Sheffield 220 kV line, Tamar CCGT out of service.","OUTAGE","OTHER","Hadspen GeorgeTown 2 220kV LINE","REGULATED","INCLUDED",null,"PLANNED",1,"126385-OUT1"]
[26,"TASNETWORKSV5_20230130160736","2015-02-09T07:30:00","T::T_HA_GT_PM_4","T-GTHA","2014-07-31",1,-27.46658,"Out = Hadspen to George Town or Hadspen to Palmerston 220 kV line, prevent poorly damped TAS North - South oscillations following fault and trip of Palmerston to Sheffield 220 kV line, Tamar CCGT out of service.","OUTAGE","OTHER","Hadspen GeorgeTown 2 220kV LINE","REGULATED","INCLUDED",null,"PLANNED",1,"126385-OUT1"]
[27,"TASNETWORKSV5_20230130160736","2015-02-09T07:35:00","T::T_HA_GT_PM_4","T-GTHA","2014-07-31",1,-23.988659999999999,"Out = Hadspen to George Town or Hadspen to Palmerston 220 kV line, prevent poorly damped TAS North - South oscillations following fault and trip of Palmerston to Sheffield 220 kV line, Tamar CCGT out of service.","OUTAGE","OTHER","Hadspen GeorgeTown 2 220kV LINE","REGULATED","INCLUDED",null,"PLANNED",1,"126385-OUT1"]
[28,"TASNETWORKSV5_20230130160736","2015-02-09T07:40:00","T::T_HA_GT_PM_4","T-GTHA","2014-07-31",1,-25.365929999999999,"Out = Hadspen to George Town or Hadspen to Palmerston 220 kV line, prevent poorly damped TAS North - South oscillations following fault and trip of Palmerston to Sheffield 220 kV line, Tamar CCGT out of service.","OUTAGE","OTHER","Hadspen GeorgeTown 2 220kV LINE","REGULATED","INCLUDED",null,"PLANNED",1,"126385-OUT1"]
[29,"TASNETWORKSV5_20230130160736","2015-02-09T07:45:00","T::T_HA_GT_PM_4","T-GTHA","2014-07-31",1,-25.252479999999998,"Out = Hadspen to George Town or Hadspen to Palmerston 220 kV line, prevent poorly damped TAS North - South oscillations following fault and trip of Palmerston to Sheffield 220 kV line, Tamar CCGT out of service.","OUTAGE","OTHER","Hadspen GeorgeTown 2 220kV LINE","REGULATED","INCLUDED",null,"PLANNED",1,"126385-OUT1"]
[30,"TASNETWORKSV5_20230130160736","2015-02-09T07:50:00","T::T_HA_GT_PM_4","T-GTHA","2014-07-31",1,-24.003070000000001,"Out = Hadspen to George Town or Hadspen to Palmerston 220 kV line, prevent poorly damped TAS North - South oscillations following fault and trip of Palmerston to Sheffield 220 kV line, Tamar CCGT out of service.","OUTAGE","OTHER","Hadspen GeorgeTown 2 220kV LINE","REGULATED","INCLUDED",null,"PLANNED",1,"126385-OUT1"]
[31,"TASNETWORKSV5_20230130160736","2015-02-09T07:55:00","T::T_HA_GT_PM_4","T-GTHA","2014-07-31",1,-23.749400000000001,"Out = Hadspen to George Town or Hadspen to Palmerston 220 kV line, prevent poorly damped TAS North - South oscillations following fault and trip of Palmerston to Sheffield 220 kV line, Tamar CCGT out of service.","OUTAGE","OTHER","Hadspen GeorgeTown 2 220kV LINE","REGULATED","INCLUDED",null,"PLANNED",1,"126385-OUT1"]
[32,"TASNETWORKSV5_20230130160736","2015-02-09T08:00:00","T::T_HA_GT_PM_4","T-GTHA","2014-07-31",1,-23.3002,"Out = Hadspen to George Town or Hadspen to Palmerston 220 kV line, prevent poorly damped TAS North - South oscillations following fault and trip of Palmerston to Sheffield 220 kV line, Tamar CCGT out of service.","OUTAGE","OTHER","Hadspen GeorgeTown 2 220kV LINE","REGULATED","INCLUDED",null,"PLANNED",1,"126385-OUT1"]
[33,"TASNETWORKSV5_20230130160736","2015-02-09T08:05:00","T::T_HA_GT_PM_4","T-GTHA","2014-07-31",1,-23.334340000000001,"Out = Hadspen to George Town or Hadspen to Palmerston 220 kV line, prevent poorly damped TAS North - South oscillations following fault and trip of Palmerston to Sheffield 220 kV line, Tamar CCGT out of service.","OUTAGE","OTHER","Hadspen GeorgeTown 2 220kV LINE","REGULATED","INCLUDED",null,"PLANNED",1,"126385-OUT1"]
[34,"TASNETWORKSV5_20230130160736","2015-02-09T08:10:00","T::T_HA_GT_PM_4","T-GTHA","2014-07-31",1,-23.3002,"Out = Hadspen to George Town or Hadspen to Palmerston 220 kV line, prevent poorly damped TAS North - South oscillations following fault and trip of Palmerston to Sheffield 220 kV line, Tamar CCGT out of service.","OUTAGE","OTHER","Hadspen GeorgeTown 2 220kV LINE","REGULATED","INCLUDED",null,"PLANNED",1,"126385-OUT1"]
[35,"TASNETWORKSV5_20230130160736","2015-02-09T08:15:00","T::T_HA_GT_PM_4","T-GTHA","2014-07-31",1,-23.388120000000001,"Out = Hadspen to George Town or Hadspen to Palmerston 220 kV line, prevent poorly damped TAS North - South oscillations following fault and trip of Palmerston to Sheffield 220 kV line, Tamar CCGT out of service.","OUTAGE","OTHER","Hadspen GeorgeTown 2 220kV LINE","REGULATED","INCLUDED",null,"PLANNED",1,"126385-OUT1"]
[36,"TASNETWORKSV5_20230130160736","2015-02-09T08:20:00","T::T_HA_GT_PM_4","T-GTHA","2014-07-31",1,-23.388120000000001,"Out = Hadspen to George Town or Hadspen to Palmerston 220 kV line, prevent poorly damped TAS North - South oscillations following fault and trip of Palmerston to Sheffield 220 kV line, Tamar CCGT out of service.","OUTAGE","OTHER","Hadspen GeorgeTown 2 220kV LINE","REGULATED","INCLUDED",null,"PLANNED",1,"126385-OUT1"]
[37,"TASNETWORKSV5_20230130160736","2015-02-09T08:25:00","T::T_HA_GT_PM_4","T-GTHA","2014-07-31",1,-23.388120000000001,"Out = Hadspen to George Town or Hadspen to Palmerston 220 kV line, prevent poorly damped TAS North - South oscillations following fault and trip of Palmerston to Sheffield 220 kV line, Tamar CCGT out of service.","OUTAGE","OTHER","Hadspen GeorgeTown 2 220kV LINE","REGULATED","INCLUDED",null,"PLANNED",1,"126385-OUT1"]
[38,"TASNETWORKSV5_20230130160736","2015-02-09T08:30:00","T::T_HA_GT_PM_4","T-GTHA","2014-07-31",1,-22.983920000000001,"Out = Hadspen to George Town or Hadspen to Palmerston 220 kV line, prevent poorly damped TAS North - South oscillations following fault and trip of Palmerston to Sheffield 220 kV line, Tamar CCGT out of service.","OUTAGE","OTHER","Hadspen GeorgeTown 2 220kV LINE","REGULATED","INCLUDED",null,"PLANNED",1,"126385-OUT1"]
[39,"TASNETWORKSV5_20230130160736","2015-02-09T08:35:00","T::T_HA_GT_PM_4","T-GTHA","2014-07-31",1,-23.00301,"Out = Hadspen to George Town or Hadspen to Palmerston 220 kV line, prevent poorly damped TAS North - South oscillations following fault and trip of Palmerston to Sheffield 220 kV line, Tamar CCGT out of service.","OUTAGE","OTHER","Hadspen GeorgeTown 2 220kV LINE","REGULATED","INCLUDED",null,"PLANNED",1,"126385-OUT1"]
[40,"TASNETWORKSV5_20230130160736","2015-02-09T08:40:00","T::T_HA_GT_PM_4","T-GTHA","2014-07-31",1,-24.130140000000001,"Out = Hadspen to George Town or Hadspen to Palmerston 220 kV line, prevent poorly damped TAS North - South oscillations following fault and trip of Palmerston to Sheffield 220 kV line, Tamar CCGT out of service.","OUTAGE","OTHER","Hadspen GeorgeTown 2 220kV LINE","REGULATED","INCLUDED",null,"PLANNED",1,"126385-OUT1"]
[41,"TASNETWORKSV5_20230130160736","2015-02-09T08:45:00","T::T_HA_GT_PM_4","T-GTHA","2014-07-31",1,-21.978200000000001,"Out = Hadspen to George Town or Hadspen to Palmerston 220 kV line, prevent poorly damped TAS North - South oscillations following fault and trip of Palmerston to Sheffield 220 kV line, Tamar CCGT out of service.","OUTAGE","OTHER","Hadspen GeorgeTown 2 220kV LINE","REGULATED","INCLUDED",null,"PLANNED",1,"126385-OUT1"]
[42,"TASNETWORKSV5_20230130160736","2015-02-09T08:50:00","T::T_HA_GT_PM_4","T-GTHA","2014-07-31",1,-21.854120000000002,"Out = Hadspen to George Town or Hadspen to Palmerston 220 kV line, prevent poorly damped TAS North - South oscillations following fault and trip of Palmerston to Sheffield 220 kV line, Tamar CCGT out of service.","OUTAGE","OTHER","Hadspen GeorgeTown 2 220kV LINE","REGULATED","INCLUDED",null,"PLANNED",1,"126385-OUT1"]
[43,"TASNETWORKSV5_20230130160736","2015-02-09T08:55:00","T::T_HA_GT_PM_4","T-GTHA","2014-07-31",1,-22.40954,"Out = Hadspen to George Town or Hadspen to Palmerston 220 kV line, prevent poorly damped TAS North - South oscillations following fault and trip of Palmerston to Sheffield 220 kV line, Tamar CCGT out of service.","OUTAGE","OTHER","Hadspen GeorgeTown 2 220kV LINE","REGULATED","INCLUDED",null,"PLANNED",1,"126385-OUT1"]
[44,"TASNETWORKSV5_20230130160736","2015-02-12T07:10:00","T>T_NWSD_110_1","T-NWSD","2015-02-03",1,-1039.6600000000001,"Out= Norwood - Scottsdale 110kV direct line, avoid O/L Scottdale Tee to Norwood 110kV line on Nil trip, Feedback","OUTAGE","OTHER","Norwood Scottsdale 110 kV line","REGULATED","INCLUDED",null,"PLANNED",1,126386]
[45,"TASNETWORKSV5_20230130160736","2015-02-12T07:15:00","T>T_NWSD_110_1","T-NWSD","2015-02-03",1,-1039.6600000000001,"Out= Norwood - Scottsdale 110kV direct line, avoid O/L Scottdale Tee to Norwood 110kV line on Nil trip, Feedback","OUTAGE","OTHER","Norwood Scottsdale 110 kV line","REGULATED","INCLUDED",null,"PLANNED",1,126386]
[46,"TASNETWORKSV5_20230130160736","2015-02-12T07:35:00","T>T_NWSD_110_1","T-NWSD","2015-02-03",1,-1034.4151199999999,"Out= Norwood - Scottsdale 110kV direct line, avoid O/L Scottdale Tee to Norwood 110kV line on Nil trip, Feedback","OUTAGE","OTHER","Norwood Scottsdale 110 kV line","REGULATED","INCLUDED",null,"PLANNED",1,126386]
[47,"TASNETWORKSV5_20230130160736","2015-02-12T07:45:00","T>T_NWSD_110_1","T-NWSD","2015-02-03",1,-1034.37889,"Out= Norwood - Scottsdale 110kV direct line, avoid O/L Scottdale Tee to Norwood 110kV line on Nil trip, Feedback","OUTAGE","OTHER","Norwood Scottsdale 110 kV line","REGULATED","INCLUDED",null,"PLANNED",1,126386]
[48,"TASNETWORKSV5_20230130160736","2015-02-12T07:50:00","T>T_NWSD_110_1","T-NWSD","2015-02-03",1,-1034.37889,"Out= Norwood - Scottsdale 110kV direct line, avoid O/L Scottdale Tee to Norwood 110kV line on Nil trip, Feedback","OUTAGE","OTHER","Norwood Scottsdale 110 kV line","REGULATED","INCLUDED",null,"PLANNED",1,126386]
[49,"TASNETWORKSV5_20230130160736","2015-02-12T08:00:00","T>T_NWSD_110_1","T-NWSD","2015-02-03",1,-1034.37889,"Out= Norwood - Scottsdale 110kV direct line, avoid O/L Scottdale Tee to Norwood 110kV line on Nil trip, Feedback","OUTAGE","OTHER","Norwood Scottsdale 110 kV line","REGULATED","INCLUDED",null,"PLANNED",1,126386]
[50,"TASNETWORKSV5_20230130160736","2015-02-12T08:05:00","T>T_NWSD_110_1","T-NWSD","2015-02-03",1,-1034.37889,"Out= Norwood - Scottsdale 110kV direct line, avoid O/L Scottdale Tee to Norwood 110kV line on Nil trip, Feedback","OUTAGE","OTHER","Norwood Scottsdale 110 kV line","REGULATED","INCLUDED",null,"PLANNED",1,126386]
[51,"TASNETWORKSV5_20230130160736","2015-02-12T08:10:00","T>T_NWSD_110_1","T-NWSD","2015-02-03",1,-1034.21,"Out= Norwood - Scottsdale 110kV direct line, avoid O/L Scottdale Tee to Norwood 110kV line on Nil trip, Feedback","OUTAGE","OTHER","Norwood Scottsdale 110 kV line","REGULATED","INCLUDED",null,"PLANNED",1,126386]
[52,"TASNETWORKSV5_20230130160736","2015-02-12T08:25:00","T>T_NWSD_110_1","T-NWSD","2015-02-03",1,-1034.37889,"Out= Norwood - Scottsdale 110kV direct line, avoid O/L Scottdale Tee to Norwood 110kV line on Nil trip, Feedback","OUTAGE","OTHER","Norwood Scottsdale 110 kV line","REGULATED","INCLUDED",null,"PLANNED",1,126386]
[53,"TASNETWORKSV5_20230130160736","2015-02-12T08:30:00","T>T_NWSD_110_1","T-NWSD","2015-02-03",1,-1034.21,"Out= Norwood - Scottsdale 110kV direct line, avoid O/L Scottdale Tee to Norwood 110kV line on Nil trip, Feedback","OUTAGE","OTHER","Norwood Scottsdale 110 kV line","REGULATED","INCLUDED",null,"PLANNED",1,126386]
[54,"TASNETWORKSV5_20230130160736","2015-02-12T08:35:00","T>T_NWSD_110_1","T-NWSD","2015-02-03",1,-1034.21,"Out= Norwood - Scottsdale 110kV direct line, avoid O/L Scottdale Tee to Norwood 110kV line on Nil trip, Feedback","OUTAGE","OTHER","Norwood Scottsdale 110 kV line","REGULATED","INCLUDED",null,"PLANNED",1,126386]
[55,"TASNETWORKSV5_20230130160736","2015-02-12T08:40:00","T>T_NWSD_110_1","T-NWSD","2015-02-03",1,-1034.21,"Out= Norwood - Scottsdale 110kV direct line, avoid O/L Scottdale Tee to Norwood 110kV line on Nil trip, Feedback","OUTAGE","OTHER","Norwood Scottsdale 110 kV line","REGULATED","INCLUDED",null,"PLANNED",1,126386]
[56,"TASNETWORKSV5_20230130160736","2015-02-12T08:45:00","T>T_NWSD_110_1","T-NWSD","2015-02-03",1,-1034.21,"Out= Norwood - Scottsdale 110kV direct line, avoid O/L Scottdale Tee to Norwood 110kV line on Nil trip, Feedback","OUTAGE","OTHER","Norwood Scottsdale 110 kV line","REGULATED","INCLUDED",null,"PLANNED",1,126386]
[57,"TASNETWORKSV5_20230130160736","2015-02-12T08:50:00","T>T_NWSD_110_1","T-NWSD","2015-02-03",1,-1034.37889,"Out= Norwood - Scottsdale 110kV direct line, avoid O/L Scottdale Tee to Norwood 110kV line on Nil trip, Feedback","OUTAGE","OTHER","Norwood Scottsdale 110 kV line","REGULATED","INCLUDED",null,"PLANNED",1,126386]
[58,"TASNETWORKSV5_20230130160736","2015-02-12T08:55:00","T>T_NWSD_110_1","T-NWSD","2015-02-03",1,-1034.37889,"Out= Norwood - Scottsdale 110kV direct line, avoid O/L Scottdale Tee to Norwood 110kV line on Nil trip, Feedback","OUTAGE","OTHER","Norwood Scottsdale 110 kV line","REGULATED","INCLUDED",null,"PLANNED",1,126386]
[59,"TASNETWORKSV5_20230130160736","2015-02-12T09:00:00","T>T_NWSD_110_1","T-NWSD","2015-02-03",1,-1034.37889,"Out= Norwood - Scottsdale 110kV direct line, avoid O/L Scottdale Tee to Norwood 110kV line on Nil trip, Feedback","OUTAGE","OTHER","Norwood Scottsdale 110 kV line","REGULATED","INCLUDED",null,"PLANNED",1,126386]
[60,"TASNETWORKSV5_20230130160736","2015-02-12T09:05:00","T>T_NWSD_110_1","T-NWSD","2015-02-03",1,-1034.37889,"Out= Norwood - Scottsdale 110kV direct line, avoid O/L Scottdale Tee to Norwood 110kV line on Nil trip, Feedback","OUTAGE","OTHER","Norwood Scottsdale 110 kV line","REGULATED","INCLUDED",null,"PLANNED",1,126386]
[61,"TASNETWORKSV5_20230130160736","2015-02-12T09:15:00","T>T_NWSD_110_1","T-NWSD","2015-02-03",1,-1034.21,"Out= Norwood - Scottsdale 110kV direct line, avoid O/L Scottdale Tee to Norwood 110kV line on Nil trip, Feedback","OUTAGE","OTHER","Norwood Scottsdale 110 kV line","REGULATED","INCLUDED",null,"PLANNED",1,126386]
[62,"TASNETWORKSV5_20230130160736","2015-02-12T09:20:00","T>T_NWSD_110_1","T-NWSD","2015-02-03",1,-1034.21,"Out= Norwood - Scottsdale 110kV direct line, avoid O/L Scottdale Tee to Norwood 110kV line on Nil trip, Feedback","OUTAGE","OTHER","Norwood Scottsdale 110 kV line","REGULATED","INCLUDED",null,"PLANNED",1,126386]
[63,"TASNETWORKSV5_20230130160736","2015-02-23T01:25:00","F_T+CSGO_TG_R6","F-T-CSGO","2015-01-29",1,710.92499999999995,"Out = one Chapel St to Gordon line, Tasmania Raise 6 sec requirement for loss of the remaining Chapel St to Gordon line, Basslink unable to transfer FCAS","OUTAGE","FCAS","Gordon ChapelSt 2 220kV LINE","REGULATED","INCLUDED",null,"UNPLANNED",1,"126478-OUT1"]
[64,"TASNETWORKSV5_20230130160736","2015-02-23T01:30:00","F_T+CSGO_TG_R6","F-T-CSGO","2015-01-29",1,556.995,"Out = one Chapel St to Gordon line, Tasmania Raise 6 sec requirement for loss of the remaining Chapel St to Gordon line, Basslink unable to transfer FCAS","OUTAGE","FCAS","Gordon ChapelSt 2 220kV LINE","REGULATED","INCLUDED",null,"UNPLANNED",1,"126478-OUT1"]
[65,"TASNETWORKSV5_20230130160736","2015-02-23T01:30:00","F_T+CSGO_TG_R60","F-T-CSGO","2015-01-29",1,418.38125000000002,"Out = one Chapel St to Gordon line, Tasmania Raise 60 sec requirement for loss of the remaining Chapel St to Gordon line, Basslink unable to transfer FCAS","OUTAGE","FCAS","Gordon ChapelSt 2 220kV LINE","REGULATED","INCLUDED",null,"UNPLANNED",1,"126478-OUT1"]
[66,"TASNETWORKSV5_20230130160736","2015-02-23T01:35:00","F_T+CSGO_TG_R6","F-T-CSGO","2015-01-29",1,782.94,"Out = one Chapel St to Gordon line, Tasmania Raise 6 sec requirement for loss of the remaining Chapel St to Gordon line, Basslink unable to transfer FCAS","OUTAGE","FCAS","Gordon ChapelSt 2 220kV LINE","REGULATED","INCLUDED",null,"UNPLANNED",1,"126478-OUT1"]
[67,"TASNETWORKSV5_20230130160736","2015-02-23T01:35:00","F_T+CSGO_TG_R60","F-T-CSGO","2015-01-29",1,587.84,"Out = one Chapel St to Gordon line, Tasmania Raise 60 sec requirement for loss of the remaining Chapel St to Gordon line, Basslink unable to transfer FCAS","OUTAGE","FCAS","Gordon ChapelSt 2 220kV LINE","REGULATED","INCLUDED",null,"UNPLANNED",1,"126478-OUT1"]
[68,"TASNETWORKSV5_20230130160736","2015-02-23T01:40:00","F_T+CSGO_TG_R6","F-T-CSGO","2015-01-29",1,556.995,"Out = one Chapel St to Gordon line, Tasmania Raise 6 sec requirement for loss of the remaining Chapel St to Gordon line, Basslink unable to transfer FCAS","OUTAGE","FCAS","Gordon ChapelSt 2 220kV LINE","REGULATED","INCLUDED",null,"UNPLANNED",1,"126478-OUT1"]
[69,"TASNETWORKSV5_20230130160736","2015-02-23T01:40:00","F_T+CSGO_TG_R60","F-T-CSGO","2015-01-29",1,418.38125000000002,"Out = one Chapel St to Gordon line, Tasmania Raise 60 sec requirement for loss of the remaining Chapel St to Gordon line, Basslink unable to transfer FCAS","OUTAGE","FCAS","Gordon ChapelSt 2 220kV LINE","REGULATED","INCLUDED",null,"UNPLANNED",1,"126478-OUT1"]
[70,"TASNETWORKSV5_20230130160736","2015-02-23T01:45:00","F_T+CSGO_TG_R6","F-T-CSGO","2015-01-29",1,366.51159999999999,"Out = one Chapel St to Gordon line, Tasmania Raise 6 sec requirement for loss of the remaining Chapel St to Gordon line, Basslink unable to transfer FCAS","OUTAGE","FCAS","Gordon ChapelSt 2 220kV LINE","REGULATED","INCLUDED",null,"UNPLANNED",1,"126478-OUT1"]
[71,"TASNETWORKSV5_20230130160736","2015-02-23T01:45:00","F_T+CSGO_TG_R60","F-T-CSGO","2015-01-29",1,170.07003,"Out = one Chapel St to Gordon line, Tasmania Raise 60 sec requirement for loss of the remaining Chapel St to Gordon line, Basslink unable to transfer FCAS","OUTAGE","FCAS","Gordon ChapelSt 2 220kV LINE","REGULATED","INCLUDED",null,"UNPLANNED",1,"126478-OUT1"]
[72,"TASNETWORKSV5_20230130160736","2015-02-23T01:50:00","F_T+CSGO_TG_R6","F-T-CSGO","2015-01-29",1,370.60356999999999,"Out = one Chapel St to Gordon line, Tasmania Raise 6 sec requirement for loss of the remaining Chapel St to Gordon line, Basslink unable to transfer FCAS","OUTAGE","FCAS","Gordon ChapelSt 2 220kV LINE","REGULATED","INCLUDED",null,"UNPLANNED",1,"126478-OUT1"]
[73,"TASNETWORKSV5_20230130160736","2015-02-23T01:50:00","F_T+CSGO_TG_R60","F-T-CSGO","2015-01-29",1,29.981490000000001,"Out = one Chapel St to Gordon line, Tasmania Raise 60 sec requirement for loss of the remaining Chapel St to Gordon line, Basslink unable to transfer FCAS","OUTAGE","FCAS","Gordon ChapelSt 2 220kV LINE","REGULATED","INCLUDED",null,"UNPLANNED",1,"126478-OUT1"]
[74,"TASNETWORKSV5_20230130160736","2015-02-23T01:55:00","F_T+CSGO_TG_R6","F-T-CSGO","2015-01-29",1,997.27499999999998,"Out = one Chapel St to Gordon line, Tasmania Raise 6 sec requirement for loss of the remaining Chapel St to Gordon line, Basslink unable to transfer FCAS","OUTAGE","FCAS","Gordon ChapelSt 2 220kV LINE","REGULATED","INCLUDED",null,"UNPLANNED",1,"126478-OUT1"]
[75,"TASNETWORKSV5_20230130160736","2015-02-23T02:00:00","F_T+CSGO_TG_R6","F-T-CSGO","2015-01-29",1,445.67,"Out = one Chapel St to Gordon line, Tasmania Raise 6 sec requirement for loss of the remaining Chapel St to Gordon line, Basslink unable to transfer FCAS","OUTAGE","FCAS","Gordon ChapelSt 2 220kV LINE","REGULATED","INCLUDED",null,"UNPLANNED",1,"126478-OUT1"]
[76,"TASNETWORKSV5_20230130160736","2015-02-23T02:05:00","F_T+CSGO_TG_R6","F-T-CSGO","2015-01-29",1,219.63499999999999,"Out = one Chapel St to Gordon line, Tasmania Raise 6 sec requirement for loss of the remaining Chapel St to Gordon line, Basslink unable to transfer FCAS","OUTAGE","FCAS","Gordon ChapelSt 2 220kV LINE","REGULATED","INCLUDED",null,"UNPLANNED",1,"126478-OUT1"]
[77,"TASNETWORKSV5_20230130160736","2015-02-23T02:10:00","F_T+CSGO_TG_R6","F-T-CSGO","2015-01-29",1,992.96463000000006,"Out = one Chapel St to Gordon line, Tasmania Raise 6 sec requirement for loss of the remaining Chapel St to Gordon line, Basslink unable to transfer FCAS","OUTAGE","FCAS","Gordon ChapelSt 2 220kV LINE","REGULATED","INCLUDED",null,"UNPLANNED",1,"126478-OUT1"]
[78,"TASNETWORKSV5_20230130160736","2015-02-23T02:15:00","F_T+CSGO_TG_R6","F-T-CSGO","2015-01-29",1,992.96463000000006,"Out = one Chapel St to Gordon line, Tasmania Raise 6 sec requirement for loss of the remaining Chapel St to Gordon line, Basslink unable to transfer FCAS","OUTAGE","FCAS","Gordon ChapelSt 2 220kV LINE","REGULATED","INCLUDED",null,"UNPLANNED",1,"126478-OUT1"]
[79,"TASNETWORKSV5_20230130160736","2015-02-23T02:20:00","F_T+CSGO_TG_R6","F-T-CSGO","2015-01-29",1,995.43499999999995,"Out = one Chapel St to Gordon line, Tasmania Raise 6 sec requirement for loss of the remaining Chapel St to Gordon line, Basslink unable to transfer FCAS","OUTAGE","FCAS","Gordon ChapelSt 2 220kV LINE","REGULATED","INCLUDED",null,"UNPLANNED",1,"126478-OUT1"]
[80,"TASNETWORKSV5_20230130160736","2015-02-23T02:25:00","F_T+CSGO_TG_R6","F-T-CSGO","2015-01-29",1,265.11250000000001,"Out = one Chapel St to Gordon line, Tasmania Raise 6 sec requirement for loss of the remaining Chapel St to Gordon line, Basslink unable to transfer FCAS","OUTAGE","FCAS","Gordon ChapelSt 2 220kV LINE","REGULATED","INCLUDED",null,"UNPLANNED",1,"126478-OUT1"]
[81,"TASNETWORKSV5_20230130160736","2015-02-23T02:30:00","F_T+CSGO_TG_R6","F-T-CSGO","2015-01-29",1,265.11250000000001,"Out = one Chapel St to Gordon line, Tasmania Raise 6 sec requirement for loss of the remaining Chapel St to Gordon line, Basslink unable to transfer FCAS","OUTAGE","FCAS","Gordon ChapelSt 2 220kV LINE","REGULATED","INCLUDED",null,"UNPLANNED",1,"126478-OUT1"]
[82,"TASNETWORKSV5_20230130160736","2015-02-23T02:40:00","F_T+CSGO_TG_R6","F-T-CSGO","2015-01-29",1,995.98289999999997,"Out = one Chapel St to Gordon line, Tasmania Raise 6 sec requirement for loss of the remaining Chapel St to Gordon line, Basslink unable to transfer FCAS","OUTAGE","FCAS","Gordon ChapelSt 2 220kV LINE","REGULATED","INCLUDED",null,"UNPLANNED",1,"126478-OUT1"]
[83,"TASNETWORKSV5_20230130160736","2015-02-23T03:15:00","F_T+CSGO_TG_R6","F-T-CSGO","2015-01-29",1,45.781579999999998,"Out = one Chapel St to Gordon line, Tasmania Raise 6 sec requirement for loss of the remaining Chapel St to Gordon line, Basslink unable to transfer FCAS","OUTAGE","FCAS","Gordon ChapelSt 2 220kV LINE","REGULATED","INCLUDED",null,"UNPLANNED",1,"126478-OUT1"]
[84,"TASNETWORKSV5_20230130160736","2015-02-23T05:25:00","F_T+CSGO_TG_R6","F-T-CSGO","2015-01-29",1,164.81842,"Out = one Chapel St to Gordon line, Tasmania Raise 6 sec requirement for loss of the remaining Chapel St to Gordon line, Basslink unable to transfer FCAS","OUTAGE","FCAS","Gordon ChapelSt 2 220kV LINE","REGULATED","INCLUDED",null,"UNPLANNED",1,"126478-OUT1"]
[85,"TASNETWORKSV5_20230130160736","2015-02-23T05:30:00","F_T+CSGO_TG_R6","F-T-CSGO","2015-01-29",1,162.84148999999999,"Out = one Chapel St to Gordon line, Tasmania Raise 6 sec requirement for loss of the remaining Chapel St to Gordon line, Basslink unable to transfer FCAS","OUTAGE","FCAS","Gordon ChapelSt 2 220kV LINE","REGULATED","INCLUDED",null,"UNPLANNED",1,"126478-OUT1"]
[86,"TASNETWORKSV5_20230130160736","2015-02-23T05:35:00","F_T+CSGO_TG_R6","F-T-CSGO","2015-01-29",1,165.10263,"Out = one Chapel St to Gordon line, Tasmania Raise 6 sec requirement for loss of the remaining Chapel St to Gordon line, Basslink unable to transfer FCAS","OUTAGE","FCAS","Gordon ChapelSt 2 220kV LINE","REGULATED","INCLUDED",null,"UNPLANNED",1,"126478-OUT1"]
[87,"TASNETWORKSV5_20230130160736","2015-03-15T08:05:00","T>T_SH_TX","T-SH_TX","2013-08-21",1,-53.009520000000002,"Out = Sheffield 220/110kV transformer, West Coast 110/220 kV parallel open, avoid O/L the Burnie to Sheffield 220kV line or Burnie No. 2 220/110 kV txfmr for loss of the remaining Sheffield 220/110kV transformer","OUTAGE","OTHER","Sheffield 2 220/110kV XFMR","REGULATED","INCLUDED",null,"PLANNED",1,"125363-OUT2"]
[88,"TASNETWORKSV5_20230130160736","2015-03-15T08:15:00","T>T_SH_TX","T-SH_TX","2013-08-21",1,-52.92877,"Out = Sheffield 220/110kV transformer, West Coast 110/220 kV parallel open, avoid O/L the Burnie to Sheffield 220kV line or Burnie No. 2 220/110 kV txfmr for loss of the remaining Sheffield 220/110kV transformer","OUTAGE","OTHER","Sheffield 2 220/110kV XFMR","REGULATED","INCLUDED",null,"PLANNED",1,"125363-OUT2"]
[89,"TASNETWORKSV5_20230130160736","2015-03-15T09:00:00","T>T_SH_TX","T-SH_TX","2013-08-21",1,-53.009520000000002,"Out = Sheffield 220/110kV transformer, West Coast 110/220 kV parallel open, avoid O/L the Burnie to Sheffield 220kV line or Burnie No. 2 220/110 kV txfmr for loss of the remaining Sheffield 220/110kV transformer","OUTAGE","OTHER","Sheffield 2 220/110kV XFMR","REGULATED","INCLUDED",null,"PLANNED",1,"125363-OUT2"]
[90,"TASNETWORKSV5_20230130160736","2015-04-22T19:40:00","T>T_X_TUMBNN_TWO_A","T-X_TUMBNN_TWO","2015-03-24",1,-109.51519999999999,"Out= Both Tungatinah to Meadowbank Tee to New Norfolk 110kV lines, avoid O/L Tungatinah to New Norfolk No.3 110kV line on trip of Waddamana to Bridgewater 110kV line, Feedback","OUTAGE","OTHER","Tungatinah Meadowbank New Norfolk 2 110 kV line","REGULATED","INCLUDED",null,"PLANNED",1,125859]
[91,"TASNETWORKSV5_20230130160736","2015-04-22T19:45:00","T>T_X_TUMBNN_TWO_A","T-X_TUMBNN_TWO","2015-03-24",1,-112.75655,"Out= Both Tungatinah to Meadowbank Tee to New Norfolk 110kV lines, avoid O/L Tungatinah to New Norfolk No.3 110kV line on trip of Waddamana to Bridgewater 110kV line, Feedback","OUTAGE","OTHER","Tungatinah Meadowbank New Norfolk 2 110 kV line","REGULATED","INCLUDED",null,"PLANNED",1,125859]
[92,"TASNETWORKSV5_20230130160736","2015-04-22T19:50:00","T>T_X_TUMBNN_TWO_A","T-X_TUMBNN_TWO","2015-03-24",1,-106.79715,"Out= Both Tungatinah to Meadowbank Tee to New Norfolk 110kV lines, avoid O/L Tungatinah to New Norfolk No.3 110kV line on trip of Waddamana to Bridgewater 110kV line, Feedback","OUTAGE","OTHER","Tungatinah Meadowbank New Norfolk 2 110 kV line","REGULATED","INCLUDED",null,"PLANNED",1,125859]
[93,"TASNETWORKSV5_20230130160736","2015-04-22T19:55:00","T>T_X_TUMBNN_TWO_A","T-X_TUMBNN_TWO","2015-03-24",1,-106.29516,"Out= Both Tungatinah to Meadowbank Tee to New Norfolk 110kV lines, avoid O/L Tungatinah to New Norfolk No.3 110kV line on trip of Waddamana to Bridgewater 110kV line, Feedback","OUTAGE","OTHER","Tungatinah Meadowbank New Norfolk 2 110 kV line","REGULATED","INCLUDED",null,"PLANNED",1,125859]
[94,"TASNETWORKSV5_20230130160736","2015-04-22T20:00:00","T>T_X_TUMBNN_TWO_A","T-X_TUMBNN_TWO","2015-03-24",1,-106.13655,"Out= Both Tungatinah to Meadowbank Tee to New Norfolk 110kV lines, avoid O/L Tungatinah to New Norfolk No.3 110kV line on trip of Waddamana to Bridgewater 110kV line, Feedback","OUTAGE","OTHER","Tungatinah Meadowbank New Norfolk 2 110 kV line","REGULATED","INCLUDED",null,"PLANNED",1,125859]
[95,"TASNETWORKSV5_20230130160736","2015-04-22T20:10:00","T>T_X_TUMBNN_TWO_A","T-X_TUMBNN_TWO","2015-03-24",1,-10.573919999999999,"Out= Both Tungatinah to Meadowbank Tee to New Norfolk 110kV lines, avoid O/L Tungatinah to New Norfolk No.3 110kV line on trip of Waddamana to Bridgewater 110kV line, Feedback","OUTAGE","OTHER","Tungatinah Meadowbank New Norfolk 2 110 kV line","REGULATED","INCLUDED",null,"PLANNED",1,125859]
[96,"TASNETWORKSV5_20230130160736","2015-04-22T20:15:00","T>T_X_TUMBNN_TWO_A","T-X_TUMBNN_TWO","2015-03-24",1,-19.341560000000001,"Out= Both Tungatinah to Meadowbank Tee to New Norfolk 110kV lines, avoid O/L Tungatinah to New Norfolk No.3 110kV line on trip of Waddamana to Bridgewater 110kV line, Feedback","OUTAGE","OTHER","Tungatinah Meadowbank New Norfolk 2 110 kV line","REGULATED","INCLUDED",null,"PLANNED",1,125859]
[97,"TASNETWORKSV5_20230130160736","2015-04-22T20:20:00","T>T_X_TUMBNN_TWO_A","T-X_TUMBNN_TWO","2015-03-24",1,-44.767989999999998,"Out= Both Tungatinah to Meadowbank Tee to New Norfolk 110kV lines, avoid O/L Tungatinah to New Norfolk No.3 110kV line on trip of Waddamana to Bridgewater 110kV line, Feedback","OUTAGE","OTHER","Tungatinah Meadowbank New Norfolk 2 110 kV line","REGULATED","INCLUDED",null,"PLANNED",1,125859]
[98,"TASNETWORKSV5_20230130160736","2015-04-22T20:25:00","T>T_X_TUMBNN_TWO_A","T-X_TUMBNN_TWO","2015-03-24",1,-11.12767,"Out= Both Tungatinah to Meadowbank Tee to New Norfolk 110kV lines, avoid O/L Tungatinah to New Norfolk No.3 110kV line on trip of Waddamana to Bridgewater 110kV line, Feedback","OUTAGE","OTHER","Tungatinah Meadowbank New Norfolk 2 110 kV line","REGULATED","INCLUDED",null,"PLANNED",1,125859]
[99,"TASNETWORKSV5_20230130160736","2015-04-22T20:30:00","T>T_X_TUMBNN_TWO_A","T-X_TUMBNN_TWO","2015-03-24",1,-11.22702,"Out= Both Tungatinah to Meadowbank Tee to New Norfolk 110kV lines, avoid O/L Tungatinah to New Norfolk No.3 110kV line on trip of Waddamana to Bridgewater 110kV line, Feedback","OUTAGE","OTHER","Tungatinah Meadowbank New Norfolk 2 110 kV line","REGULATED","INCLUDED",null,"PLANNED",1,125859]
[100,"TASNETWORKSV5_20230130160736","2015-04-22T20:40:00","T>T_X_TUMBNN_TWO_A","T-X_TUMBNN_TWO","2015-03-24",1,-23.842140000000001,"Out= Both Tungatinah to Meadowbank Tee to New Norfolk 110kV lines, avoid O/L Tungatinah to New Norfolk No.3 110kV line on trip of Waddamana to Bridgewater 110kV line, Feedback","OUTAGE","OTHER","Tungatinah Meadowbank New Norfolk 2 110 kV line","REGULATED","INCLUDED",null,"PLANNED",1,125859]
[101,"TASNETWORKSV5_20230130160736","2015-04-22T20:45:00","T>T_X_TUMBNN_TWO_A","T-X_TUMBNN_TWO","2015-03-24",1,-17.98349,"Out= Both Tungatinah to Meadowbank Tee to New Norfolk 110kV lines, avoid O/L Tungatinah to New Norfolk No.3 110kV line on trip of Waddamana to Bridgewater 110kV line, Feedback","OUTAGE","OTHER","Tungatinah Meadowbank New Norfolk 2 110 kV line","REGULATED","INCLUDED",null,"PLANNED",1,125859]
[102,"TASNETWORKSV5_20230130160736","2015-04-22T20:50:00","T>T_X_TUMBNN_TWO_A","T-X_TUMBNN_TWO","2015-03-24",1,-17.98349,"Out= Both Tungatinah to Meadowbank Tee to New Norfolk 110kV lines, avoid O/L Tungatinah to New Norfolk No.3 110kV line on trip of Waddamana to Bridgewater 110kV line, Feedback","OUTAGE","OTHER","Tungatinah Meadowbank New Norfolk 2 110 kV line","REGULATED","INCLUDED",null,"PLANNED",1,125859]
[103,"TASNETWORKSV5_20230130160736","2015-04-22T20:55:00","T>T_X_TUMBNN_TWO_A","T-X_TUMBNN_TWO","2015-03-24",1,-17.98349,"Out= Both Tungatinah to Meadowbank Tee to New Norfolk 110kV lines, avoid O/L Tungatinah to New Norfolk No.3 110kV line on trip of Waddamana to Bridgewater 110kV line, Feedback","OUTAGE","OTHER","Tungatinah Meadowbank New Norfolk 2 110 kV line","REGULATED","INCLUDED",null,"PLANNED",1,125859]
[104,"TASNETWORKSV5_20230130160736","2015-04-22T21:00:00","T>T_X_TUMBNN_TWO_A","T-X_TUMBNN_TWO","2015-03-24",1,-17.98349,"Out= Both Tungatinah to Meadowbank Tee to New Norfolk 110kV lines, avoid O/L Tungatinah to New Norfolk No.3 110kV line on trip of Waddamana to Bridgewater 110kV line, Feedback","OUTAGE","OTHER","Tungatinah Meadowbank New Norfolk 2 110 kV line","REGULATED","INCLUDED",null,"PLANNED",1,125859]
[105,"TASNETWORKSV5_20230130160736","2015-04-22T21:05:00","T>T_X_TUMBNN_TWO_A","T-X_TUMBNN_TWO","2015-03-24",1,-20.67521,"Out= Both Tungatinah to Meadowbank Tee to New Norfolk 110kV lines, avoid O/L Tungatinah to New Norfolk No.3 110kV line on trip of Waddamana to Bridgewater 110kV line, Feedback","OUTAGE","OTHER","Tungatinah Meadowbank New Norfolk 2 110 kV line","REGULATED","INCLUDED",null,"PLANNED",1,125859]
[106,"TASNETWORKSV5_20230130160736","2015-04-22T21:10:00","T>T_X_TUMBNN_TWO_A","T-X_TUMBNN_TWO","2015-03-24",1,-15.20562,"Out= Both Tungatinah to Meadowbank Tee to New Norfolk 110kV lines, avoid O/L Tungatinah to New Norfolk No.3 110kV line on trip of Waddamana to Bridgewater 110kV line, Feedback","OUTAGE","OTHER","Tungatinah Meadowbank New Norfolk 2 110 kV line","REGULATED","INCLUDED",null,"PLANNED",1,125859]
[107,"TASNETWORKSV5_20230130160736","2015-04-22T21:15:00","T>T_X_TUMBNN_TWO_A","T-X_TUMBNN_TWO","2015-03-24",1,-11.12767,"Out= Both Tungatinah to Meadowbank Tee to New Norfolk 110kV lines, avoid O/L Tungatinah to New Norfolk No.3 110kV line on trip of Waddamana to Bridgewater 110kV line, Feedback","OUTAGE","OTHER","Tungatinah Meadowbank New Norfolk 2 110 kV line","REGULATED","INCLUDED",null,"PLANNED",1,125859]
[108,"TASNETWORKSV5_20230130160736","2015-04-22T21:20:00","T>T_X_TUMBNN_TWO_A","T-X_TUMBNN_TWO","2015-03-24",1,-11.12767,"Out= Both Tungatinah to Meadowbank Tee to New Norfolk 110kV lines, avoid O/L Tungatinah to New Norfolk No.3 110kV line on trip of Waddamana to Bridgewater 110kV line, Feedback","OUTAGE","OTHER","Tungatinah Meadowbank New Norfolk 2 110 kV line","REGULATED","INCLUDED",null,"PLANNED",1,125859]
[109,"TASNETWORKSV5_20230130160736","2015-04-22T21:25:00","T>T_X_TUMBNN_TWO_A","T-X_TUMBNN_TWO","2015-03-24",1,-11.12767,"Out= Both Tungatinah to Meadowbank Tee to New Norfolk 110kV lines, avoid O/L Tungatinah to New Norfolk No.3 110kV line on trip of Waddamana to Bridgewater 110kV line, Feedback","OUTAGE","OTHER","Tungatinah Meadowbank New Norfolk 2 110 kV line","REGULATED","INCLUDED",null,"PLANNED",1,125859]
[110,"TASNETWORKSV5_20230130160736","2015-04-22T21:30:00","T>T_X_TUMBNN_TWO_A","T-X_TUMBNN_TWO","2015-03-24",1,-11.12767,"Out= Both Tungatinah to Meadowbank Tee to New Norfolk 110kV lines, avoid O/L Tungatinah to New Norfolk No.3 110kV line on trip of Waddamana to Bridgewater 110kV line, Feedback","OUTAGE","OTHER","Tungatinah Meadowbank New Norfolk 2 110 kV line","REGULATED","INCLUDED",null,"PLANNED",1,125859]
[111,"TASNETWORKSV5_20230130160736","2015-04-22T21:35:00","T>T_X_TUMBNN_TWO_A","T-X_TUMBNN_TWO","2015-03-24",1,-11.12767,"Out= Both Tungatinah to Meadowbank Tee to New Norfolk 110kV lines, avoid O/L Tungatinah to New Norfolk No.3 110kV line on trip of Waddamana to Bridgewater 110kV line, Feedback","OUTAGE","OTHER","Tungatinah Meadowbank New Norfolk 2 110 kV line","REGULATED","INCLUDED",null,"PLANNED",1,125859]
[112,"TASNETWORKSV5_20230130160736","2015-04-24T08:55:00","T>T_X_TUMBNN_TWO_B","T-X_TUMBNN_TWO","2015-03-24",1,-47.862740000000002,"Out= Both Tungatinah to Meadowbank Tee to New Norfolk 110kV lines, avoid O/L Lake Echo Tee to Waddamana 110kV line on trip of Tungatinah to Waddamana 110kV line, Feedback","OUTAGE","OTHER","Tungatinah Meadowbank New Norfolk 2 110 kV line","REGULATED","INCLUDED",null,"PLANNED",1,125859]
[113,"TASNETWORKSV5_20230130160736","2015-04-24T09:00:00","T>T_X_TUMBNN_TWO_A","T-X_TUMBNN_TWO","2015-03-24",1,-41.148870000000002,"Out= Both Tungatinah to Meadowbank Tee to New Norfolk 110kV lines, avoid O/L Tungatinah to New Norfolk No.3 110kV line on trip of Waddamana to Bridgewater 110kV line, Feedback","OUTAGE","OTHER","Tungatinah Meadowbank New Norfolk 2 110 kV line","REGULATED","INCLUDED",null,"PLANNED",1,125859]
[114,"TASNETWORKSV5_20230130160736","2015-04-24T09:05:00","T>T_X_TUMBNN_TWO_A","T-X_TUMBNN_TWO","2015-03-24",1,-39.48845,"Out= Both Tungatinah to Meadowbank Tee to New Norfolk 110kV lines, avoid O/L Tungatinah to New Norfolk No.3 110kV line on trip of Waddamana to Bridgewater 110kV line, Feedback","OUTAGE","OTHER","Tungatinah Meadowbank New Norfolk 2 110 kV line","REGULATED","INCLUDED",null,"PLANNED",1,125859]
[115,"TASNETWORKSV5_20230130160736","2015-04-24T09:10:00","T>T_X_TUMBNN_TWO_A","T-X_TUMBNN_TWO","2015-03-24",1,-36.76061,"Out= Both Tungatinah to Meadowbank Tee to New Norfolk 110kV lines, avoid O/L Tungatinah to New Norfolk No.3 110kV line on trip of Waddamana to Bridgewater 110kV line, Feedback","OUTAGE","OTHER","Tungatinah Meadowbank New Norfolk 2 110 kV line","REGULATED","INCLUDED",null,"PLANNED",1,125859]
[116,"TASNETWORKSV5_20230130160736","2015-04-24T09:15:00","T>T_X_TUMBNN_TWO_A","T-X_TUMBNN_TWO","2015-03-24",1,-36.871090000000002,"Out= Both Tungatinah to Meadowbank Tee to New Norfolk 110kV lines, avoid O/L Tungatinah to New Norfolk No.3 110kV line on trip of Waddamana to Bridgewater 110kV line, Feedback","OUTAGE","OTHER","Tungatinah Meadowbank New Norfolk 2 110 kV line","REGULATED","INCLUDED",null,"PLANNED",1,125859]
[117,"TASNETWORKSV5_20230130160736","2015-04-24T09:20:00","T>T_X_TUMBNN_TWO_A","T-X_TUMBNN_TWO","2015-03-24",1,-36.88693,"Out= Both Tungatinah to Meadowbank Tee to New Norfolk 110kV lines, avoid O/L Tungatinah to New Norfolk No.3 110kV line on trip of Waddamana to Bridgewater 110kV line, Feedback","OUTAGE","OTHER","Tungatinah Meadowbank New Norfolk 2 110 kV line","REGULATED","INCLUDED",null,"PLANNED",1,125859]
[118,"TASNETWORKSV5_20230130160736","2015-04-24T09:25:00","T>T_X_TUMBNN_TWO_A","T-X_TUMBNN_TWO","2015-03-24",1,-36.88693,"Out= Both Tungatinah to Meadowbank Tee to New Norfolk 110kV lines, avoid O/L Tungatinah to New Norfolk No.3 110kV line on trip of Waddamana to Bridgewater 110kV line, Feedback","OUTAGE","OTHER","Tungatinah Meadowbank New Norfolk 2 110 kV line","REGULATED","INCLUDED",null,"PLANNED",1,125859]
[119,"TASNETWORKSV5_20230130160736","2015-04-24T09:30:00","T>T_X_TUMBNN_TWO_A","T-X_TUMBNN_TWO","2015-03-24",1,-34.180070000000001,"Out= Both Tungatinah to Meadowbank Tee to New Norfolk 110kV lines, avoid O/L Tungatinah to New Norfolk No.3 110kV line on trip of Waddamana to Bridgewater 110kV line, Feedback","OUTAGE","OTHER","Tungatinah Meadowbank New Norfolk 2 110 kV line","REGULATED","INCLUDED",null,"PLANNED",1,125859]
[120,"TASNETWORKSV5_20230130160736","2015-04-24T09:35:00","T>T_X_TUMBNN_TWO_A","T-X_TUMBNN_TWO","2015-03-24",1,-36.88693,"Out= Both Tungatinah to Meadowbank Tee to New Norfolk 110kV lines, avoid O/L Tungatinah to New Norfolk No.3 110kV line on trip of Waddamana to Bridgewater 110kV line, Feedback","OUTAGE","OTHER","Tungatinah Meadowbank New Norfolk 2 110 kV line","REGULATED","INCLUDED",null,"PLANNED",1,125859]
[121,"TASNETWORKSV5_20230130160736","2015-04-24T09:40:00","T>T_X_TUMBNN_TWO_A","T-X_TUMBNN_TWO","2015-03-24",1,-36.88693,"Out= Both Tungatinah to Meadowbank Tee to New Norfolk 110kV lines, avoid O/L Tungatinah to New Norfolk No.3 110kV line on trip of Waddamana to Bridgewater 110kV line, Feedback","OUTAGE","OTHER","Tungatinah Meadowbank New Norfolk 2 110 kV line","REGULATED","INCLUDED",null,"PLANNED",1,125859]
[122,"TASNETWORKSV5_20230130160736","2015-04-24T09:45:00","T>T_X_TUMBNN_TWO_B","T-X_TUMBNN_TWO","2015-03-24",1,-41.136069999999997,"Out= Both Tungatinah to Meadowbank Tee to New Norfolk 110kV lines, avoid O/L Lake Echo Tee to Waddamana 110kV line on trip of Tungatinah to Waddamana 110kV line, Feedback","OUTAGE","OTHER","Tungatinah Meadowbank New Norfolk 2 110 kV line","REGULATED","INCLUDED",null,"PLANNED",1,125859]
[123,"TASNETWORKSV5_20230130160736","2015-04-24T09:50:00","T>T_X_TUMBNN_TWO_B","T-X_TUMBNN_TWO","2015-03-24",1,-41.136069999999997,"Out= Both Tungatinah to Meadowbank Tee to New Norfolk 110kV lines, avoid O/L Lake Echo Tee to Waddamana 110kV line on trip of Tungatinah to Waddamana 110kV line, Feedback","OUTAGE","OTHER","Tungatinah Meadowbank New Norfolk 2 110 kV line","REGULATED","INCLUDED",null,"PLANNED",1,125859]
[124,"TASNETWORKSV5_20230130160736","2015-04-24T09:55:00","T>T_X_TUMBNN_TWO_B","T-X_TUMBNN_TWO","2015-03-24",1,-41.136069999999997,"Out= Both Tungatinah to Meadowbank Tee to New Norfolk 110kV lines, avoid O/L Lake Echo Tee to Waddamana 110kV line on trip of Tungatinah to Waddamana 110kV line, Feedback","OUTAGE","OTHER","Tungatinah Meadowbank New Norfolk 2 110 kV line","REGULATED","INCLUDED",null,"PLANNED",1,125859]
[125,"TASNETWORKSV5_20230130160736","2015-04-24T10:00:00","T>T_X_TUMBNN_TWO_B","T-X_TUMBNN_TWO","2015-03-24",1,-41.136069999999997,"Out= Both Tungatinah to Meadowbank Tee to New Norfolk 110kV lines, avoid O/L Lake Echo Tee to Waddamana 110kV line on trip of Tungatinah to Waddamana 110kV line, Feedback","OUTAGE","OTHER","Tungatinah Meadowbank New Norfolk 2 110 kV line","REGULATED","INCLUDED",null,"PLANNED",1,125859]
[126,"TASNETWORKSV5_20230130160736","2015-04-24T10:05:00","T>T_X_TUMBNN_TWO_B","T-X_TUMBNN_TWO","2015-03-24",1,-46.170879999999997,"Out= Both Tungatinah to Meadowbank Tee to New Norfolk 110kV lines, avoid O/L Lake Echo Tee to Waddamana 110kV line on trip of Tungatinah to Waddamana 110kV line, Feedback","OUTAGE","OTHER","Tungatinah Meadowbank New Norfolk 2 110 kV line","REGULATED","INCLUDED",null,"PLANNED",1,125859]
[127,"TASNETWORKSV5_20230130160736","2015-04-24T10:30:00","T>T_X_TUMBNN_TWO_B","T-X_TUMBNN_TWO","2015-03-24",1,-45.914439999999999,"Out= Both Tungatinah to Meadowbank Tee to New Norfolk 110kV lines, avoid O/L Lake Echo Tee to Waddamana 110kV line on trip of Tungatinah to Waddamana 110kV line, Feedback","OUTAGE","OTHER","Tungatinah Meadowbank New Norfolk 2 110 kV line","REGULATED","INCLUDED",null,"PLANNED",1,125859]
[128,"TASNETWORKSV5_20230130160736","2015-04-24T10:35:00","T>T_X_TUMBNN_TWO_B","T-X_TUMBNN_TWO","2015-03-24",1,-32.022460000000002,"Out= Both Tungatinah to Meadowbank Tee to New Norfolk 110kV lines, avoid O/L Lake Echo Tee to Waddamana 110kV line on trip of Tungatinah to Waddamana 110kV line, Feedback","OUTAGE","OTHER","Tungatinah Meadowbank New Norfolk 2 110 kV line","REGULATED","INCLUDED",null,"PLANNED",1,125859]
[129,"TASNETWORKSV5_20230130160736","2015-04-24T10:40:00","T>T_X_TUMBNN_TWO_A","T-X_TUMBNN_TWO","2015-03-24",1,-13.865629999999999,"Out= Both Tungatinah to Meadowbank Tee to New Norfolk 110kV lines, avoid O/L Tungatinah to New Norfolk No.3 110kV line on trip of Waddamana to Bridgewater 110kV line, Feedback","OUTAGE","OTHER","Tungatinah Meadowbank New Norfolk 2 110 kV line","REGULATED","INCLUDED",null,"PLANNED",1,125859]
[130,"TASNETWORKSV5_20230130160736","2015-04-24T10:45:00","T>T_X_TUMBNN_TWO_A","T-X_TUMBNN_TWO","2015-03-24",1,-34.298070000000003,"Out= Both Tungatinah to Meadowbank Tee to New Norfolk 110kV lines, avoid O/L Tungatinah to New Norfolk No.3 110kV line on trip of Waddamana to Bridgewater 110kV line, Feedback","OUTAGE","OTHER","Tungatinah Meadowbank New Norfolk 2 110 kV line","REGULATED","INCLUDED",null,"PLANNED",1,125859]
[131,"TASNETWORKSV5_20230130160736","2015-04-24T10:50:00","T>T_X_TUMBNN_TWO_A","T-X_TUMBNN_TWO","2015-03-24",1,-35.094250000000002,"Out= Both Tungatinah to Meadowbank Tee to New Norfolk 110kV lines, avoid O/L Tungatinah to New Norfolk No.3 110kV line on trip of Waddamana to Bridgewater 110kV line, Feedback","OUTAGE","OTHER","Tungatinah Meadowbank New Norfolk 2 110 kV line","REGULATED","INCLUDED",null,"PLANNED",1,125859]
[132,"TASNETWORKSV5_20230130160736","2015-04-24T10:55:00","T>T_X_TUMBNN_TWO_B","T-X_TUMBNN_TWO","2015-03-24",1,-41.136069999999997,"Out= Both Tungatinah to Meadowbank Tee to New Norfolk 110kV lines, avoid O/L Lake Echo Tee to Waddamana 110kV line on trip of Tungatinah to Waddamana 110kV line, Feedback","OUTAGE","OTHER","Tungatinah Meadowbank New Norfolk 2 110 kV line","REGULATED","INCLUDED",null,"PLANNED",1,125859]
[133,"TASNETWORKSV5_20230130160736","2015-04-24T11:00:00","T>T_X_TUMBNN_TWO_B","T-X_TUMBNN_TWO","2015-03-24",1,-41.042079999999999,"Out= Both Tungatinah to Meadowbank Tee to New Norfolk 110kV lines, avoid O/L Lake Echo Tee to Waddamana 110kV line on trip of Tungatinah to Waddamana 110kV line, Feedback","OUTAGE","OTHER","Tungatinah Meadowbank New Norfolk 2 110 kV line","REGULATED","INCLUDED",null,"PLANNED",1,125859]
[134,"TASNETWORKSV5_20230130160736","2015-04-24T11:05:00","T>T_X_TUMBNN_TWO_B","T-X_TUMBNN_TWO","2015-03-24",1,-41.042079999999999,"Out= Both Tungatinah to Meadowbank Tee to New Norfolk 110kV lines, avoid O/L Lake Echo Tee to Waddamana 110kV line on trip of Tungatinah to Waddamana 110kV line, Feedback","OUTAGE","OTHER","Tungatinah Meadowbank New Norfolk 2 110 kV line","REGULATED","INCLUDED",null,"PLANNED",1,125859]
[135,"TASNETWORKSV5_20230130160736","2015-04-24T11:10:00","T>T_X_TUMBNN_TWO_B","T-X_TUMBNN_TWO","2015-03-24",1,-41.042079999999999,"Out= Both Tungatinah to Meadowbank Tee to New Norfolk 110kV lines, avoid O/L Lake Echo Tee to Waddamana 110kV line on trip of Tungatinah to Waddamana 110kV line, Feedback","OUTAGE","OTHER","Tungatinah Meadowbank New Norfolk 2 110 kV line","REGULATED","INCLUDED",null,"PLANNED",1,125859]
[136,"TASNETWORKSV5_20230130160736","2015-04-24T11:15:00","T>T_X_TUMBNN_TWO_B","T-X_TUMBNN_TWO","2015-03-24",1,-41.042079999999999,"Out= Both Tungatinah to Meadowbank Tee to New Norfolk 110kV lines, avoid O/L Lake Echo Tee to Waddamana 110kV line on trip of Tungatinah to Waddamana 110kV line, Feedback","OUTAGE","OTHER","Tungatinah Meadowbank New Norfolk 2 110 kV line","REGULATED","INCLUDED",null,"PLANNED",1,125859]
[137,"TASNETWORKSV5_20230130160736","2015-04-24T11:20:00","T>T_X_TUMBNN_TWO_B","T-X_TUMBNN_TWO","2015-03-24",1,-32.781059999999997,"Out= Both Tungatinah to Meadowbank Tee to New Norfolk 110kV lines, avoid O/L Lake Echo Tee to Waddamana 110kV line on trip of Tungatinah to Waddamana 110kV line, Feedback","OUTAGE","OTHER","Tungatinah Meadowbank New Norfolk 2 110 kV line","REGULATED","INCLUDED",null,"PLANNED",1,125859]
[138,"TASNETWORKSV5_20230130160736","2015-04-24T11:25:00","T>T_X_TUMBNN_TWO_B","T-X_TUMBNN_TWO","2015-03-24",1,-32.781059999999997,"Out= Both Tungatinah to Meadowbank Tee to New Norfolk 110kV lines, avoid O/L Lake Echo Tee to Waddamana 110kV line on trip of Tungatinah to Waddamana 110kV line, Feedback","OUTAGE","OTHER","Tungatinah Meadowbank New Norfolk 2 110 kV line","REGULATED","INCLUDED",null,"PLANNED",1,125859]
[139,"TASNETWORKSV5_20230130160736","2015-04-24T11:30:00","T>T_X_TUMBNN_TWO_B","T-X_TUMBNN_TWO","2015-03-24",1,-32.781059999999997,"Out= Both Tungatinah to Meadowbank Tee to New Norfolk 110kV lines, avoid O/L Lake Echo Tee to Waddamana 110kV line on trip of Tungatinah to Waddamana 110kV line, Feedback","OUTAGE","OTHER","Tungatinah Meadowbank New Norfolk 2 110 kV line","REGULATED","INCLUDED",null,"PLANNED",1,125859]
[140,"TASNETWORKSV5_20230130160736","2015-04-24T11:35:00","T>T_X_TUMBNN_TWO_B","T-X_TUMBNN_TWO","2015-03-24",1,-32.781059999999997,"Out= Both Tungatinah to Meadowbank Tee to New Norfolk 110kV lines, avoid O/L Lake Echo Tee to Waddamana 110kV line on trip of Tungatinah to Waddamana 110kV line, Feedback","OUTAGE","OTHER","Tungatinah Meadowbank New Norfolk 2 110 kV line","REGULATED","INCLUDED",null,"PLANNED",1,125859]
[141,"TASNETWORKSV5_20230130160736","2015-04-24T11:40:00","T>T_X_TUMBNN_TWO_B","T-X_TUMBNN_TWO","2015-03-24",1,-32.781059999999997,"Out= Both Tungatinah to Meadowbank Tee to New Norfolk 110kV lines, avoid O/L Lake Echo Tee to Waddamana 110kV line on trip of Tungatinah to Waddamana 110kV line, Feedback","OUTAGE","OTHER","Tungatinah Meadowbank New Norfolk 2 110 kV line","REGULATED","INCLUDED",null,"PLANNED",1,125859]
[142,"TASNETWORKSV5_20230130160736","2015-04-24T11:45:00","T>T_X_TUMBNN_TWO_B","T-X_TUMBNN_TWO","2015-03-24",1,-32.781059999999997,"Out= Both Tungatinah to Meadowbank Tee to New Norfolk 110kV lines, avoid O/L Lake Echo Tee to Waddamana 110kV line on trip of Tungatinah to Waddamana 110kV line, Feedback","OUTAGE","OTHER","Tungatinah Meadowbank New Norfolk 2 110 kV line","REGULATED","INCLUDED",null,"PLANNED",1,125859]
[143,"TASNETWORKSV5_20230130160736","2015-04-24T11:55:00","T>T_X_TUMBNN_TWO_B","T-X_TUMBNN_TWO","2015-03-24",1,-41.042079999999999,"Out= Both Tungatinah to Meadowbank Tee to New Norfolk 110kV lines, avoid O/L Lake Echo Tee to Waddamana 110kV line on trip of Tungatinah to Waddamana 110kV line, Feedback","OUTAGE","OTHER","Tungatinah Meadowbank New Norfolk 2 110 kV line","REGULATED","INCLUDED",null,"PLANNED",1,125859]
[144,"TASNETWORKSV5_20230130160736","2015-04-24T12:00:00","T>T_X_TUMBNN_TWO_B","T-X_TUMBNN_TWO","2015-03-24",1,-41.042079999999999,"Out= Both Tungatinah to Meadowbank Tee to New Norfolk 110kV lines, avoid O/L Lake Echo Tee to Waddamana 110kV line on trip of Tungatinah to Waddamana 110kV line, Feedback","OUTAGE","OTHER","Tungatinah Meadowbank New Norfolk 2 110 kV line","REGULATED","INCLUDED",null,"PLANNED",1,125859]
[145,"TASNETWORKSV5_20230130160736","2015-04-24T12:05:00","T>T_X_TUMBNN_TWO_B","T-X_TUMBNN_TWO","2015-03-24",1,-41.042079999999999,"Out= Both Tungatinah to Meadowbank Tee to New Norfolk 110kV lines, avoid O/L Lake Echo Tee to Waddamana 110kV line on trip of Tungatinah to Waddamana 110kV line, Feedback","OUTAGE","OTHER","Tungatinah Meadowbank New Norfolk 2 110 kV line","REGULATED","INCLUDED",null,"PLANNED",1,125859]
[146,"TASNETWORKSV5_20230130160736","2015-04-24T12:10:00","T>T_X_TUMBNN_TWO_B","T-X_TUMBNN_TWO","2015-03-24",1,-27.41187,"Out= Both Tungatinah to Meadowbank Tee to New Norfolk 110kV lines, avoid O/L Lake Echo Tee to Waddamana 110kV line on trip of Tungatinah to Waddamana 110kV line, Feedback","OUTAGE","OTHER","Tungatinah Meadowbank New Norfolk 2 110 kV line","REGULATED","INCLUDED",null,"PLANNED",1,125859]
[147,"TASNETWORKSV5_20230130160736","2015-04-24T12:15:00","T>T_X_TUMBNN_TWO_B","T-X_TUMBNN_TWO","2015-03-24",1,-32.781059999999997,"Out= Both Tungatinah to Meadowbank Tee to New Norfolk 110kV lines, avoid O/L Lake Echo Tee to Waddamana 110kV line on trip of Tungatinah to Waddamana 110kV line, Feedback","OUTAGE","OTHER","Tungatinah Meadowbank New Norfolk 2 110 kV line","REGULATED","INCLUDED",null,"PLANNED",1,125859]
[148,"TASNETWORKSV5_20230130160736","2015-04-24T12:20:00","T>T_X_TUMBNN_TWO_B","T-X_TUMBNN_TWO","2015-03-24",1,-41.042079999999999,"Out= Both Tungatinah to Meadowbank Tee to New Norfolk 110kV lines, avoid O/L Lake Echo Tee to Waddamana 110kV line on trip of Tungatinah to Waddamana 110kV line, Feedback","OUTAGE","OTHER","Tungatinah Meadowbank New Norfolk 2 110 kV line","REGULATED","INCLUDED",null,"PLANNED",1,125859]
[149,"TASNETWORKSV5_20230130160736","2015-04-24T12:25:00","T>T_X_TUMBNN_TWO_B","T-X_TUMBNN_TWO","2015-03-24",1,-32.781059999999997,"Out= Both Tungatinah to Meadowbank Tee to New Norfolk 110kV lines, avoid O/L Lake Echo Tee to Waddamana 110kV line on trip of Tungatinah to Waddamana 110kV line, Feedback","OUTAGE","OTHER","Tungatinah Meadowbank New Norfolk 2 110 kV line","REGULATED","INCLUDED",null,"PLANNED",1,125859]
[150,"TASNETWORKSV5_20230130160736","2015-04-24T12:30:00","T>T_X_TUMBNN_TWO_B","T-X_TUMBNN_TWO","2015-03-24",1,-32.781059999999997,"Out= Both Tungatinah to Meadowbank Tee to New Norfolk 110kV lines, avoid O/L Lake Echo Tee to Waddamana 110kV line on trip of Tungatinah to Waddamana 110kV line, Feedback","OUTAGE","OTHER","Tungatinah Meadowbank New Norfolk 2 110 kV line","REGULATED","INCLUDED",null,"PLANNED",1,125859]
[151,"TASNETWORKSV5_20230130160736","2015-04-24T12:35:00","T>T_X_TUMBNN_TWO_B","T-X_TUMBNN_TWO","2015-03-24",1,-41.042079999999999,"Out= Both Tungatinah to Meadowbank Tee to New Norfolk 110kV lines, avoid O/L Lake Echo Tee to Waddamana 110kV line on trip of Tungatinah to Waddamana 110kV line, Feedback","OUTAGE","OTHER","Tungatinah Meadowbank New Norfolk 2 110 kV line","REGULATED","INCLUDED",null,"PLANNED",1,125859]
[152,"TASNETWORKSV5_20230130160736","2015-04-24T12:40:00","T>T_X_TUMBNN_TWO_B","T-X_TUMBNN_TWO","2015-03-24",1,-41.042079999999999,"Out= Both Tungatinah to Meadowbank Tee to New Norfolk 110kV lines, avoid O/L Lake Echo Tee to Waddamana 110kV line on trip of Tungatinah to Waddamana 110kV line, Feedback","OUTAGE","OTHER","Tungatinah Meadowbank New Norfolk 2 110 kV line","REGULATED","INCLUDED",null,"PLANNED",1,125859]
[153,"TASNETWORKSV5_20230130160736","2015-04-24T12:45:00","T>T_X_TUMBNN_TWO_B","T-X_TUMBNN_TWO","2015-03-24",1,-41.042079999999999,"Out= Both Tungatinah to Meadowbank Tee to New Norfolk 110kV lines, avoid O/L Lake Echo Tee to Waddamana 110kV line on trip of Tungatinah to Waddamana 110kV line, Feedback","OUTAGE","OTHER","Tungatinah Meadowbank New Norfolk 2 110 kV line","REGULATED","INCLUDED",null,"PLANNED",1,125859]
[154,"TASNETWORKSV5_20230130160736","2015-04-24T12:50:00","T>T_X_TUMBNN_TWO_B","T-X_TUMBNN_TWO","2015-03-24",1,-41.042079999999999,"Out= Both Tungatinah to Meadowbank Tee to New Norfolk 110kV lines, avoid O/L Lake Echo Tee to Waddamana 110kV line on trip of Tungatinah to Waddamana 110kV line, Feedback","OUTAGE","OTHER","Tungatinah Meadowbank New Norfolk 2 110 kV line","REGULATED","INCLUDED",null,"PLANNED",1,125859]
[155,"TASNETWORKSV5_20230130160736","2015-04-24T13:05:00","T>T_X_TUMBNN_TWO_B","T-X_TUMBNN_TWO","2015-03-24",1,-39.609499999999997,"Out= Both Tungatinah to Meadowbank Tee to New Norfolk 110kV lines, avoid O/L Lake Echo Tee to Waddamana 110kV line on trip of Tungatinah to Waddamana 110kV line, Feedback","OUTAGE","OTHER","Tungatinah Meadowbank New Norfolk 2 110 kV line","REGULATED","INCLUDED",null,"PLANNED",1,125859]
[156,"TASNETWORKSV5_20230130160736","2015-04-24T13:10:00","T>T_X_TUMBNN_TWO_A","T-X_TUMBNN_TWO","2015-03-24",1,-11.12767,"Out= Both Tungatinah to Meadowbank Tee to New Norfolk 110kV lines, avoid O/L Tungatinah to New Norfolk No.3 110kV line on trip of Waddamana to Bridgewater 110kV line, Feedback","OUTAGE","OTHER","Tungatinah Meadowbank New Norfolk 2 110 kV line","REGULATED","INCLUDED",null,"PLANNED",1,125859]
[157,"TASNETWORKSV5_20230130160736","2015-04-24T13:10:00","T>T_X_TUMBNN_TWO_B","T-X_TUMBNN_TWO","2015-03-24",1,-25.460229999999999,"Out= Both Tungatinah to Meadowbank Tee to New Norfolk 110kV lines, avoid O/L Lake Echo Tee to Waddamana 110kV line on trip of Tungatinah to Waddamana 110kV line, Feedback","OUTAGE","OTHER","Tungatinah Meadowbank New Norfolk 2 110 kV line","REGULATED","INCLUDED",null,"PLANNED",1,125859]
[158,"TASNETWORKSV5_20230130160736","2015-04-24T13:15:00","T>T_X_TUMBNN_TWO_A","T-X_TUMBNN_TWO","2015-03-24",1,-32.97,"Out= Both Tungatinah to Meadowbank Tee to New Norfolk 110kV lines, avoid O/L Tungatinah to New Norfolk No.3 110kV line on trip of Waddamana to Bridgewater 110kV line, Feedback","OUTAGE","OTHER","Tungatinah Meadowbank New Norfolk 2 110 kV line","REGULATED","INCLUDED",null,"PLANNED",1,125859]
[159,"TASNETWORKSV5_20230130160736","2015-04-24T13:20:00","T>T_X_TUMBNN_TWO_B","T-X_TUMBNN_TWO","2015-03-24",1,-32.254660000000001,"Out= Both Tungatinah to Meadowbank Tee to New Norfolk 110kV lines, avoid O/L Lake Echo Tee to Waddamana 110kV line on trip of Tungatinah to Waddamana 110kV line, Feedback","OUTAGE","OTHER","Tungatinah Meadowbank New Norfolk 2 110 kV line","REGULATED","INCLUDED",null,"PLANNED",1,125859]
[160,"TASNETWORKSV5_20230130160736","2015-04-24T13:25:00","T>T_X_TUMBNN_TWO_B","T-X_TUMBNN_TWO","2015-03-24",1,-30.276199999999999,"Out= Both Tungatinah to Meadowbank Tee to New Norfolk 110kV lines, avoid O/L Lake Echo Tee to Waddamana 110kV line on trip of Tungatinah to Waddamana 110kV line, Feedback","OUTAGE","OTHER","Tungatinah Meadowbank New Norfolk 2 110 kV line","REGULATED","INCLUDED",null,"PLANNED",1,125859]
[161,"TASNETWORKSV5_20230130160736","2015-04-24T13:30:00","T>T_X_TUMBNN_TWO_A","T-X_TUMBNN_TWO","2015-03-24",1,-11.759510000000001,"Out= Both Tungatinah to Meadowbank Tee to New Norfolk 110kV lines, avoid O/L Tungatinah to New Norfolk No.3 110kV line on trip of Waddamana to Bridgewater 110kV line, Feedback","OUTAGE","OTHER","Tungatinah Meadowbank New Norfolk 2 110 kV line","REGULATED","INCLUDED",null,"PLANNED",1,125859]
[162,"TASNETWORKSV5_20230130160736","2015-04-24T13:30:00","T>T_X_TUMBNN_TWO_B","T-X_TUMBNN_TWO","2015-03-24",1,-24.66947,"Out= Both Tungatinah to Meadowbank Tee to New Norfolk 110kV lines, avoid O/L Lake Echo Tee to Waddamana 110kV line on trip of Tungatinah to Waddamana 110kV line, Feedback","OUTAGE","OTHER","Tungatinah Meadowbank New Norfolk 2 110 kV line","REGULATED","INCLUDED",null,"PLANNED",1,125859]
[163,"TASNETWORKSV5_20230130160736","2015-04-24T13:35:00","T>T_X_TUMBNN_TWO_B","T-X_TUMBNN_TWO","2015-03-24",1,-32.781059999999997,"Out= Both Tungatinah to Meadowbank Tee to New Norfolk 110kV lines, avoid O/L Lake Echo Tee to Waddamana 110kV line on trip of Tungatinah to Waddamana 110kV line, Feedback","OUTAGE","OTHER","Tungatinah Meadowbank New Norfolk 2 110 kV line","REGULATED","INCLUDED",null,"PLANNED",1,125859]
[164,"TASNETWORKSV5_20230130160736","2015-04-24T13:40:00","T>T_X_TUMBNN_TWO_B","T-X_TUMBNN_TWO","2015-03-24",1,-32.401760000000003,"Out= Both Tungatinah to Meadowbank Tee to New Norfolk 110kV lines, avoid O/L Lake Echo Tee to Waddamana 110kV line on trip of Tungatinah to Waddamana 110kV line, Feedback","OUTAGE","OTHER","Tungatinah Meadowbank New Norfolk 2 110 kV line","REGULATED","INCLUDED",null,"PLANNED",1,125859]
[165,"TASNETWORKSV5_20230130160736","2015-04-24T13:45:00","T>T_X_TUMBNN_TWO_B","T-X_TUMBNN_TWO","2015-03-24",1,-32.781059999999997,"Out= Both Tungatinah to Meadowbank Tee to New Norfolk 110kV lines, avoid O/L Lake Echo Tee to Waddamana 110kV line on trip of Tungatinah to Waddamana 110kV line, Feedback","OUTAGE","OTHER","Tungatinah Meadowbank New Norfolk 2 110 kV line","REGULATED","INCLUDED",null,"PLANNED",1,125859]
[166,"TASNETWORKSV5_20230130160736","2015-04-24T13:50:00","T>T_X_TUMBNN_TWO_B","T-X_TUMBNN_TWO","2015-03-24",1,-32.401760000000003,"Out= Both Tungatinah to Meadowbank Tee to New Norfolk 110kV lines, avoid O/L Lake Echo Tee to Waddamana 110kV line on trip of Tungatinah to Waddamana 110kV line, Feedback","OUTAGE","OTHER","Tungatinah Meadowbank New Norfolk 2 110 kV line","REGULATED","INCLUDED",null,"PLANNED",1,125859]
[167,"TASNETWORKSV5_20230130160736","2015-04-24T13:55:00","T>T_X_TUMBNN_TWO_B","T-X_TUMBNN_TWO","2015-03-24",1,-40.987819999999999,"Out= Both Tungatinah to Meadowbank Tee to New Norfolk 110kV lines, avoid O/L Lake Echo Tee to Waddamana 110kV line on trip of Tungatinah to Waddamana 110kV line, Feedback","OUTAGE","OTHER","Tungatinah Meadowbank New Norfolk 2 110 kV line","REGULATED","INCLUDED",null,"PLANNED",1,125859]
[168,"TASNETWORKSV5_20230130160736","2015-04-24T14:00:00","T>T_X_TUMBNN_TWO_B","T-X_TUMBNN_TWO","2015-03-24",1,-32.401760000000003,"Out= Both Tungatinah to Meadowbank Tee to New Norfolk 110kV lines, avoid O/L Lake Echo Tee to Waddamana 110kV line on trip of Tungatinah to Waddamana 110kV line, Feedback","OUTAGE","OTHER","Tungatinah Meadowbank New Norfolk 2 110 kV line","REGULATED","INCLUDED",null,"PLANNED",1,125859]
[169,"TASNETWORKSV5_20230130160736","2015-04-24T14:05:00","T>T_X_TUMBNN_TWO_B","T-X_TUMBNN_TWO","2015-03-24",1,-32.401760000000003,"Out= Both Tungatinah to Meadowbank Tee to New Norfolk 110kV lines, avoid O/L Lake Echo Tee to Waddamana 110kV line on trip of Tungatinah to Waddamana 110kV line, Feedback","OUTAGE","OTHER","Tungatinah Meadowbank New Norfolk 2 110 kV line","REGULATED","INCLUDED",null,"PLANNED",1,125859]
[170,"TASNETWORKSV5_20230130160736","2015-04-24T14:10:00","T>T_X_TUMBNN_TWO_B","T-X_TUMBNN_TWO","2015-03-24",1,-32.401760000000003,"Out= Both Tungatinah to Meadowbank Tee to New Norfolk 110kV lines, avoid O/L Lake Echo Tee to Waddamana 110kV line on trip of Tungatinah to Waddamana 110kV line, Feedback","OUTAGE","OTHER","Tungatinah Meadowbank New Norfolk 2 110 kV line","REGULATED","INCLUDED",null,"PLANNED",1,125859]
[171,"TASNETWORKSV5_20230130160736","2015-04-24T14:15:00","T>T_X_TUMBNN_TWO_B","T-X_TUMBNN_TWO","2015-03-24",1,-32.401760000000003,"Out= Both Tungatinah to Meadowbank Tee to New Norfolk 110kV lines, avoid O/L Lake Echo Tee to Waddamana 110kV line on trip of Tungatinah to Waddamana 110kV line, Feedback","OUTAGE","OTHER","Tungatinah Meadowbank New Norfolk 2 110 kV line","REGULATED","INCLUDED",null,"PLANNED",1,125859]
[172,"TASNETWORKSV5_20230130160736","2015-04-24T14:20:00","T>T_X_TUMBNN_TWO_B","T-X_TUMBNN_TWO","2015-03-24",1,-32.401760000000003,"Out= Both Tungatinah to Meadowbank Tee to New Norfolk 110kV lines, avoid O/L Lake Echo Tee to Waddamana 110kV line on trip of Tungatinah to Waddamana 110kV line, Feedback","OUTAGE","OTHER","Tungatinah Meadowbank New Norfolk 2 110 kV line","REGULATED","INCLUDED",null,"PLANNED",1,125859]
[173,"TASNETWORKSV5_20230130160736","2015-04-24T14:25:00","T>T_X_TUMBNN_TWO_B","T-X_TUMBNN_TWO","2015-03-24",1,-32.401760000000003,"Out= Both Tungatinah to Meadowbank Tee to New Norfolk 110kV lines, avoid O/L Lake Echo Tee to Waddamana 110kV line on trip of Tungatinah to Waddamana 110kV line, Feedback","OUTAGE","OTHER","Tungatinah Meadowbank New Norfolk 2 110 kV line","REGULATED","INCLUDED",null,"PLANNED",1,125859]
[174,"TASNETWORKSV5_20230130160736","2015-04-24T14:30:00","T>T_X_TUMBNN_TWO_B","T-X_TUMBNN_TWO","2015-03-24",1,-32.669040000000003,"Out= Both Tungatinah to Meadowbank Tee to New Norfolk 110kV lines, avoid O/L Lake Echo Tee to Waddamana 110kV line on trip of Tungatinah to Waddamana 110kV line, Feedback","OUTAGE","OTHER","Tungatinah Meadowbank New Norfolk 2 110 kV line","REGULATED","INCLUDED",null,"PLANNED",1,125859]
[175,"TASNETWORKSV5_20230130160736","2015-04-24T14:35:00","T>T_X_TUMBNN_TWO_A","T-X_TUMBNN_TWO","2015-03-24",1,-19.33549,"Out= Both Tungatinah to Meadowbank Tee to New Norfolk 110kV lines, avoid O/L Tungatinah to New Norfolk No.3 110kV line on trip of Waddamana to Bridgewater 110kV line, Feedback","OUTAGE","OTHER","Tungatinah Meadowbank New Norfolk 2 110 kV line","REGULATED","INCLUDED",null,"PLANNED",1,125859]
[176,"TASNETWORKSV5_20230130160736","2015-04-24T15:50:00","T>T_X_TUMBNN_TWO_A","T-X_TUMBNN_TWO","2015-03-24",1,-11.12767,"Out= Both Tungatinah to Meadowbank Tee to New Norfolk 110kV lines, avoid O/L Tungatinah to New Norfolk No.3 110kV line on trip of Waddamana to Bridgewater 110kV line, Feedback","OUTAGE","OTHER","Tungatinah Meadowbank New Norfolk 2 110 kV line","REGULATED","INCLUDED",null,"PLANNED",1,125859]
[177,"TASNETWORKSV5_20230130160736","2015-04-24T15:55:00","T>T_X_TUMBNN_TWO_A","T-X_TUMBNN_TWO","2015-03-24",1,-11.12767,"Out= Both Tungatinah to Meadowbank Tee to New Norfolk 110kV lines, avoid O/L Tungatinah to New Norfolk No.3 110kV line on trip of Waddamana to Bridgewater 110kV line, Feedback","OUTAGE","OTHER","Tungatinah Meadowbank New Norfolk 2 110 kV line","REGULATED","INCLUDED",null,"PLANNED",1,125859]
[178,"TASNETWORKSV5_20230130160736","2015-05-05T11:30:00","T>T_NWSD_110_1","T-NWSD","2015-02-03",1,-1015.17864,"Out= Norwood - Scottsdale 110kV direct line, avoid O/L Scottdale Tee to Norwood 110kV line on Nil trip, Feedback","OUTAGE","OTHER","Norwood Scottsdale 110 kV line","REGULATED","INCLUDED",null,"UNPLANNED",1,2068]
[179,"TASNETWORKSV5_20230130160736","2015-05-05T11:40:00","T>T_NWSD_110_1","T-NWSD","2015-02-03",1,-1014.05425,"Out= Norwood - Scottsdale 110kV direct line, avoid O/L Scottdale Tee to Norwood 110kV line on Nil trip, Feedback","OUTAGE","OTHER","Norwood Scottsdale 110 kV line","REGULATED","INCLUDED",null,"UNPLANNED",1,2068]
[180,"TASNETWORKSV5_20230130160736","2015-05-05T11:45:00","T>T_NWSD_110_1","T-NWSD","2015-02-03",1,-1014.90172,"Out= Norwood - Scottsdale 110kV direct line, avoid O/L Scottdale Tee to Norwood 110kV line on Nil trip, Feedback","OUTAGE","OTHER","Norwood Scottsdale 110 kV line","REGULATED","INCLUDED",null,"UNPLANNED",1,2068]
[181,"TASNETWORKSV5_20230130160736","2015-05-05T11:50:00","T>T_NWSD_110_1","T-NWSD","2015-02-03",1,-1019.19475,"Out= Norwood - Scottsdale 110kV direct line, avoid O/L Scottdale Tee to Norwood 110kV line on Nil trip, Feedback","OUTAGE","OTHER","Norwood Scottsdale 110 kV line","REGULATED","INCLUDED",null,"UNPLANNED",1,2068]
[182,"TASNETWORKSV5_20230130160736","2015-05-05T11:55:00","T>T_NWSD_110_1","T-NWSD","2015-02-03",1,-1015.22392,"Out= Norwood - Scottsdale 110kV direct line, avoid O/L Scottdale Tee to Norwood 110kV line on Nil trip, Feedback","OUTAGE","OTHER","Norwood Scottsdale 110 kV line","REGULATED","INCLUDED",null,"UNPLANNED",1,2068]
[183,"TASNETWORKSV5_20230130160736","2015-05-05T12:00:00","T>T_NWSD_110_1","T-NWSD","2015-02-03",1,-1015.1848199999999,"Out= Norwood - Scottsdale 110kV direct line, avoid O/L Scottdale Tee to Norwood 110kV line on Nil trip, Feedback","OUTAGE","OTHER","Norwood Scottsdale 110 kV line","REGULATED","INCLUDED",null,"UNPLANNED",1,2068]
[184,"TASNETWORKSV5_20230130160736","2015-05-05T12:05:00","T>T_NWSD_110_1","T-NWSD","2015-02-03",1,-1025.1746599999999,"Out= Norwood - Scottsdale 110kV direct line, avoid O/L Scottdale Tee to Norwood 110kV line on Nil trip, Feedback","OUTAGE","OTHER","Norwood Scottsdale 110 kV line","REGULATED","INCLUDED",null,"UNPLANNED",1,2068]
[185,"TASNETWORKSV5_20230130160736","2015-05-05T12:10:00","T>T_NWSD_110_1","T-NWSD","2015-02-03",1,-1025.144,"Out= Norwood - Scottsdale 110kV direct line, avoid O/L Scottdale Tee to Norwood 110kV line on Nil trip, Feedback","OUTAGE","OTHER","Norwood Scottsdale 110 kV line","REGULATED","INCLUDED",null,"UNPLANNED",1,2068]
[186,"TASNETWORKSV5_20230130160736","2015-05-05T12:15:00","T>T_NWSD_110_1","T-NWSD","2015-02-03",1,-1026.5676900000001,"Out= Norwood - Scottsdale 110kV direct line, avoid O/L Scottdale Tee to Norwood 110kV line on Nil trip, Feedback","OUTAGE","OTHER","Norwood Scottsdale 110 kV line","REGULATED","INCLUDED",null,"UNPLANNED",1,2068]
[187,"TASNETWORKSV5_20230130160736","2015-05-05T12:20:00","T>T_NWSD_110_1","T-NWSD","2015-02-03",1,-1028.60688,"Out= Norwood - Scottsdale 110kV direct line, avoid O/L Scottdale Tee to Norwood 110kV line on Nil trip, Feedback","OUTAGE","OTHER","Norwood Scottsdale 110 kV line","REGULATED","INCLUDED",null,"UNPLANNED",1,2068]
[188,"TASNETWORKSV5_20230130160736","2015-05-05T12:25:00","T>T_NWSD_110_1","T-NWSD","2015-02-03",1,-1024.41579,"Out= Norwood - Scottsdale 110kV direct line, avoid O/L Scottdale Tee to Norwood 110kV line on Nil trip, Feedback","OUTAGE","OTHER","Norwood Scottsdale 110 kV line","REGULATED","INCLUDED",null,"UNPLANNED",1,2068]
[189,"TASNETWORKSV5_20230130160736","2015-05-05T12:30:00","T>T_NWSD_110_1","T-NWSD","2015-02-03",1,-1026.05231,"Out= Norwood - Scottsdale 110kV direct line, avoid O/L Scottdale Tee to Norwood 110kV line on Nil trip, Feedback","OUTAGE","OTHER","Norwood Scottsdale 110 kV line","REGULATED","INCLUDED",null,"UNPLANNED",1,2068]
[190,"TASNETWORKSV5_20230130160736","2015-05-05T12:35:00","T>T_NWSD_110_1","T-NWSD","2015-02-03",1,-1025.72127,"Out= Norwood - Scottsdale 110kV direct line, avoid O/L Scottdale Tee to Norwood 110kV line on Nil trip, Feedback","OUTAGE","OTHER","Norwood Scottsdale 110 kV line","REGULATED","INCLUDED",null,"UNPLANNED",1,2068]
[191,"TASNETWORKSV5_20230130160736","2015-05-05T12:40:00","T>T_NWSD_110_1","T-NWSD","2015-02-03",1,-1027.95742,"Out= Norwood - Scottsdale 110kV direct line, avoid O/L Scottdale Tee to Norwood 110kV line on Nil trip, Feedback","OUTAGE","OTHER","Norwood Scottsdale 110 kV line","REGULATED","INCLUDED",null,"UNPLANNED",1,2068]
[192,"TASNETWORKSV5_20230130160736","2015-05-05T12:45:00","T>T_NWSD_110_1","T-NWSD","2015-02-03",1,-1027.4942599999999,"Out= Norwood - Scottsdale 110kV direct line, avoid O/L Scottdale Tee to Norwood 110kV line on Nil trip, Feedback","OUTAGE","OTHER","Norwood Scottsdale 110 kV line","REGULATED","INCLUDED",null,"UNPLANNED",1,2068]
[193,"TASNETWORKSV5_20230130160736","2015-05-05T12:50:00","T>T_NWSD_110_1","T-NWSD","2015-02-03",1,-1026.3142399999999,"Out= Norwood - Scottsdale 110kV direct line, avoid O/L Scottdale Tee to Norwood 110kV line on Nil trip, Feedback","OUTAGE","OTHER","Norwood Scottsdale 110 kV line","REGULATED","INCLUDED",null,"UNPLANNED",1,2068]
[194,"TASNETWORKSV5_20230130160736","2015-05-05T12:55:00","T>T_NWSD_110_1","T-NWSD","2015-02-03",1,-1024.42977,"Out= Norwood - Scottsdale 110kV direct line, avoid O/L Scottdale Tee to Norwood 110kV line on Nil trip, Feedback","OUTAGE","OTHER","Norwood Scottsdale 110 kV line","REGULATED","INCLUDED",null,"UNPLANNED",1,2068]
[195,"TASNETWORKSV5_20230130160736","2015-05-05T13:00:00","T>T_NWSD_110_1","T-NWSD","2015-02-03",1,-1009.57598,"Out= Norwood - Scottsdale 110kV direct line, avoid O/L Scottdale Tee to Norwood 110kV line on Nil trip, Feedback","OUTAGE","OTHER","Norwood Scottsdale 110 kV line","REGULATED","INCLUDED",null,"UNPLANNED",1,2068]
[196,"TASNETWORKSV5_20230130160736","2015-05-05T13:05:00","T>T_NWSD_110_1","T-NWSD","2015-02-03",1,-1015.69453,"Out= Norwood - Scottsdale 110kV direct line, avoid O/L Scottdale Tee to Norwood 110kV line on Nil trip, Feedback","OUTAGE","OTHER","Norwood Scottsdale 110 kV line","REGULATED","INCLUDED",null,"UNPLANNED",1,2068]
[197,"TASNETWORKSV5_20230130160736","2015-05-05T13:10:00","T>T_NWSD_110_1","T-NWSD","2015-02-03",1,-1026.41056,"Out= Norwood - Scottsdale 110kV direct line, avoid O/L Scottdale Tee to Norwood 110kV line on Nil trip, Feedback","OUTAGE","OTHER","Norwood Scottsdale 110 kV line","REGULATED","INCLUDED",null,"UNPLANNED",1,2068]
[198,"TASNETWORKSV5_20230130160736","2015-05-05T13:15:00","T>T_NWSD_110_1","T-NWSD","2015-02-03",1,-1024.8197500000001,"Out= Norwood - Scottsdale 110kV direct line, avoid O/L Scottdale Tee to Norwood 110kV line on Nil trip, Feedback","OUTAGE","OTHER","Norwood Scottsdale 110 kV line","REGULATED","INCLUDED",null,"UNPLANNED",1,2068]
[199,"TASNETWORKSV5_20230130160736","2015-05-05T13:20:00","T>T_NWSD_110_1","T-NWSD","2015-02-03",1,-1029.8,"Out= Norwood - Scottsdale 110kV direct line, avoid O/L Scottdale Tee to Norwood 110kV line on Nil trip, Feedback","OUTAGE","OTHER","Norwood Scottsdale 110 kV line","REGULATED","INCLUDED",null,"UNPLANNED",1,2068]
[200,"TASNETWORKSV5_20230130160736","2015-05-05T13:25:00","T>T_NWSD_110_1","T-NWSD","2015-02-03",1,-1024.5251599999999,"Out= Norwood - Scottsdale 110kV direct line, avoid O/L Scottdale Tee to Norwood 110kV line on Nil trip, Feedback","OUTAGE","OTHER","Norwood Scottsdale 110 kV line","REGULATED","INCLUDED",null,"UNPLANNED",1,2068]
[201,"TASNETWORKSV5_20230130160736","2015-05-05T13:30:00","T>T_NWSD_110_1","T-NWSD","2015-02-03",1,-1020.65423,"Out= Norwood - Scottsdale 110kV direct line, avoid O/L Scottdale Tee to Norwood 110kV line on Nil trip, Feedback","OUTAGE","OTHER","Norwood Scottsdale 110 kV line","REGULATED","INCLUDED",null,"UNPLANNED",1,2068]
[202,"TASNETWORKSV5_20230130160736","2015-05-05T13:35:00","T>T_NWSD_110_1","T-NWSD","2015-02-03",1,-1027.06852,"Out= Norwood - Scottsdale 110kV direct line, avoid O/L Scottdale Tee to Norwood 110kV line on Nil trip, Feedback","OUTAGE","OTHER","Norwood Scottsdale 110 kV line","REGULATED","INCLUDED",null,"UNPLANNED",1,2068]
[203,"TASNETWORKSV5_20230130160736","2015-05-05T13:40:00","T>T_NWSD_110_1","T-NWSD","2015-02-03",1,-1017.6039500000001,"Out= Norwood - Scottsdale 110kV direct line, avoid O/L Scottdale Tee to Norwood 110kV line on Nil trip, Feedback","OUTAGE","OTHER","Norwood Scottsdale 110 kV line","REGULATED","INCLUDED",null,"UNPLANNED",1,2068]
[204,"TASNETWORKSV5_20230130160736","2015-05-05T13:45:00","T>T_NWSD_110_1","T-NWSD","2015-02-03",1,-1028.7702999999999,"Out= Norwood - Scottsdale 110kV direct line, avoid O/L Scottdale Tee to Norwood 110kV line on Nil trip, Feedback","OUTAGE","OTHER","Norwood Scottsdale 110 kV line","REGULATED","INCLUDED",null,"UNPLANNED",1,2068]
[205,"TASNETWORKSV5_20230130160736","2015-05-05T13:50:00","T>T_NWSD_110_1","T-NWSD","2015-02-03",1,-1023.32141,"Out= Norwood - Scottsdale 110kV direct line, avoid O/L Scottdale Tee to Norwood 110kV line on Nil trip, Feedback","OUTAGE","OTHER","Norwood Scottsdale 110 kV line","REGULATED","INCLUDED",null,"UNPLANNED",1,2068]
[206,"TASNETWORKSV5_20230130160736","2015-05-05T13:55:00","T>T_NWSD_110_1","T-NWSD","2015-02-03",1,-1019.75985,"Out= Norwood - Scottsdale 110kV direct line, avoid O/L Scottdale Tee to Norwood 110kV line on Nil trip, Feedback","OUTAGE","OTHER","Norwood Scottsdale 110 kV line","REGULATED","INCLUDED",null,"UNPLANNED",1,2068]
[207,"TASNETWORKSV5_20230130160736","2015-05-05T14:00:00","T>T_NWSD_110_1","T-NWSD","2015-02-03",1,-1026.3013699999999,"Out= Norwood - Scottsdale 110kV direct line, avoid O/L Scottdale Tee to Norwood 110kV line on Nil trip, Feedback","OUTAGE","OTHER","Norwood Scottsdale 110 kV line","REGULATED","INCLUDED",null,"UNPLANNED",1,2068]
[208,"TASNETWORKSV5_20230130160736","2015-05-05T14:05:00","T>T_NWSD_110_1","T-NWSD","2015-02-03",1,-1033.0950700000001,"Out= Norwood - Scottsdale 110kV direct line, avoid O/L Scottdale Tee to Norwood 110kV line on Nil trip, Feedback","OUTAGE","OTHER","Norwood Scottsdale 110 kV line","REGULATED","INCLUDED",null,"UNPLANNED",1,2068]
[209,"TASNETWORKSV5_20230130160736","2015-05-05T14:10:00","T>T_NWSD_110_1","T-NWSD","2015-02-03",1,-1032.89157,"Out= Norwood - Scottsdale 110kV direct line, avoid O/L Scottdale Tee to Norwood 110kV line on Nil trip, Feedback","OUTAGE","OTHER","Norwood Scottsdale 110 kV line","REGULATED","INCLUDED",null,"UNPLANNED",1,2068]
[210,"TASNETWORKSV5_20230130160736","2015-06-01T03:55:00","F_T+CSGO_TG_R6_1","F-T-CSGO","2015-04-29",1,993.28557000000001,"Out = one Chapel St to Gordon line, Tasmania Raise 6 sec requirement for loss of the remaining Chapel St to Gordon line, Basslink unable to transfer FCAS, Segment1","OUTAGE","FCAS","Gordon Chapel St 1 220 kV line","REGULATED","INCLUDED",null,"UNPLANNED",1,2074]
[211,"TASNETWORKSV5_20230130160736","2015-06-01T04:00:00","F_T+CSGO_TG_R6_1","F-T-CSGO","2015-04-29",1,987.61712999999997,"Out = one Chapel St to Gordon line, Tasmania Raise 6 sec requirement for loss of the remaining Chapel St to Gordon line, Basslink unable to transfer FCAS, Segment1","OUTAGE","FCAS","Gordon Chapel St 1 220 kV line","REGULATED","INCLUDED",null,"UNPLANNED",1,2074]
[212,"TASNETWORKSV5_20230130160736","2015-06-08T20:45:00","T>T_GTSH_IMP_4K","T-GTSH","2013-08-21",1,-48.34,"Out = Sheffield to Georgetown 220 kV line, avoid O/L Palmerston to Sheffield 220 kV line (flow to Palmerston) for trip of remaining Sheffield to Georgetown 220 kV line with no NCSPS action, feedback","OUTAGE","OTHER","Sheffield George Town 1 220 kV line","REGULATED","INCLUDED",null,"UNPLANNED",1,2074]
[213,"TASNETWORKSV5_20230130160736","2015-06-08T20:50:00","T::T_GTSH_2","T-GTSH","2014-07-31",1,-18.190000000000001,"Out = George Town to Sheffield 220 kV line, prevent transient instability for fault and trip of a Farrell to Sheffield line, Tamar Valley CCGT out of service, Basslink importing","OUTAGE","OTHER","Sheffield George Town 1 220 kV line","REGULATED","INCLUDED",null,"UNPLANNED",1,2074]
[214,"TASNETWORKSV5_20230130160736","2015-06-17T13:10:00","T>T_PMSH_IMP_4E","T-PMSH","2013-09-02",1,-27.941780000000001,"Out = Palmerston to Sheffield 220 kV line, avoid O/L Sheffield to George Town No. 1 220 kV line (flow to George Town) for trip of Sheffield to George Town No. 2 220 kV line with no NCSPS action, feedback","OUTAGE","OTHER","Palmerston Sheffield 220kV LINE","REGULATED","INCLUDED",null,"UNPLANNED",1,"127115-OUT1"]
[215,"TASNETWORKSV5_20230130160736","2015-06-17T13:15:00","T>T_PMSH_IMP_4F","T-PMSH","2013-09-02",1,-27.894269999999999,"Out = Palmerston to Sheffield 220 kV line, avoid O/L Sheffield to George Town No. 2 220 kV line (flow to George Town) for trip of Sheffield to George Town No. 1 220 kV line with no NCSPS action, feedback","OUTAGE","OTHER","Palmerston Sheffield 220kV LINE","REGULATED","INCLUDED",null,"UNPLANNED",1,"127115-OUT1"]
[216,"TASNETWORKSV5_20230130160736","2015-06-17T13:20:00","T>T_PMSH_IMP_4E","T-PMSH","2013-09-02",1,-38.95628,"Out = Palmerston to Sheffield 220 kV line, avoid O/L Sheffield to George Town No. 1 220 kV line (flow to George Town) for trip of Sheffield to George Town No. 2 220 kV line with no NCSPS action, feedback","OUTAGE","OTHER","Palmerston Sheffield 220kV LINE","REGULATED","INCLUDED",null,"UNPLANNED",1,"127115-OUT1"]
[217,"TASNETWORKSV5_20230130160736","2015-06-17T13:25:00","T>T_PMSH_IMP_4E","T-PMSH","2013-09-02",1,-38.963419999999999,"Out = Palmerston to Sheffield 220 kV line, avoid O/L Sheffield to George Town No. 1 220 kV line (flow to George Town) for trip of Sheffield to George Town No. 2 220 kV line with no NCSPS action, feedback","OUTAGE","OTHER","Palmerston Sheffield 220kV LINE","REGULATED","INCLUDED",null,"UNPLANNED",1,"127115-OUT1"]
[218,"TASNETWORKSV5_20230130160736","2015-06-17T13:30:00","T>T_PMSH_5E","T-PMSH","2013-09-02",1,-38.817709999999998,"Out = Palmerston to Sheffield 220 kV line, avoid O/L line terminal equipment of Sheffield to George Town No. 1 220 kV line (flow to George Town) for trip of Sheffield to George Town No. 2 220 kV line, feedback","OUTAGE","OTHER","Palmerston Sheffield 220kV LINE","REGULATED","INCLUDED",null,"UNPLANNED",1,"127115-OUT1"]
[219,"TASNETWORKSV5_20230130160736","2015-06-17T13:35:00","T>T_PMSH_5E","T-PMSH","2013-09-02",1,-27.701630000000002,"Out = Palmerston to Sheffield 220 kV line, avoid O/L line terminal equipment of Sheffield to George Town No. 1 220 kV line (flow to George Town) for trip of Sheffield to George Town No. 2 220 kV line, feedback","OUTAGE","OTHER","Palmerston Sheffield 220kV LINE","REGULATED","INCLUDED",null,"UNPLANNED",1,"127115-OUT1"]
[220,"TASNETWORKSV5_20230130160736","2015-06-17T13:40:00","T>T_PMSH_IMP_4E","T-PMSH","2013-09-02",1,-38.817709999999998,"Out = Palmerston to Sheffield 220 kV line, avoid O/L Sheffield to George Town No. 1 220 kV line (flow to George Town) for trip of Sheffield to George Town No. 2 220 kV line with no NCSPS action, feedback","OUTAGE","OTHER","Palmerston Sheffield 220kV LINE","REGULATED","INCLUDED",null,"UNPLANNED",1,"127115-OUT1"]
[221,"TASNETWORKSV5_20230130160736","2015-06-17T13:45:00","T>T_PMSH_5E","T-PMSH","2013-09-02",1,-38.914270000000002,"Out = Palmerston to Sheffield 220 kV line, avoid O/L line terminal equipment of Sheffield to George Town No. 1 220 kV line (flow to George Town) for trip of Sheffield to George Town No. 2 220 kV line, feedback","OUTAGE","OTHER","Palmerston Sheffield 220kV LINE","REGULATED","INCLUDED",null,"UNPLANNED",1,127115]
[222,"TASNETWORKSV5_20230130160736","2015-06-17T13:50:00","T>T_PMSH_5E","T-PMSH","2013-09-02",1,-43.461849999999998,"Out = Palmerston to Sheffield 220 kV line, avoid O/L line terminal equipment of Sheffield to George Town No. 1 220 kV line (flow to George Town) for trip of Sheffield to George Town No. 2 220 kV line, feedback","OUTAGE","OTHER","Palmerston Sheffield 220kV LINE","REGULATED","INCLUDED",null,"UNPLANNED",1,127115]
[223,"TASNETWORKSV5_20230130160736","2015-06-17T13:55:00","T>T_PMSH_IMP_4E","T-PMSH","2013-09-02",1,-38.95964,"Out = Palmerston to Sheffield 220 kV line, avoid O/L Sheffield to George Town No. 1 220 kV line (flow to George Town) for trip of Sheffield to George Town No. 2 220 kV line with no NCSPS action, feedback","OUTAGE","OTHER","Palmerston Sheffield 220kV LINE","REGULATED","INCLUDED",null,"UNPLANNED",1,127115]
[224,"TASNETWORKSV5_20230130160736","2015-06-17T14:00:00","T>T_PMSH_IMP_4F","T-PMSH","2013-09-02",1,-38.948050000000002,"Out = Palmerston to Sheffield 220 kV line, avoid O/L Sheffield to George Town No. 2 220 kV line (flow to George Town) for trip of Sheffield to George Town No. 1 220 kV line with no NCSPS action, feedback","OUTAGE","OTHER","Palmerston Sheffield 220kV LINE","REGULATED","INCLUDED",null,"UNPLANNED",1,127115]
[225,"TASNETWORKSV5_20230130160736","2015-06-17T14:05:00","T>T_PMSH_5E","T-PMSH","2013-09-02",1,-38.914270000000002,"Out = Palmerston to Sheffield 220 kV line, avoid O/L line terminal equipment of Sheffield to George Town No. 1 220 kV line (flow to George Town) for trip of Sheffield to George Town No. 2 220 kV line, feedback","OUTAGE","OTHER","Palmerston Sheffield 220kV LINE","REGULATED","INCLUDED",null,"UNPLANNED",1,127115]
[226,"TASNETWORKSV5_20230130160736","2015-09-23T14:05:00","T_FAJB","T-FAJB","2013-08-21",1,-7728127.8111800002,"Out=Farrell-John Butters 220KV line. Energy <= 0MW","OUTAGE","OTHER","Farrell JohnButtrs 220kV LINE","REGULATED","INCLUDED",null,"UNPLANNED",1,"127364-OUT1"]
[227,"TASNETWORKSV5_20230130160736","2015-09-23T14:10:00","T_FAJB","T-FAJB","2013-08-21",1,-7728121.0600300003,"Out=Farrell-John Butters 220KV line. Energy <= 0MW","OUTAGE","OTHER","Farrell JohnButtrs 220kV LINE","REGULATED","INCLUDED",null,"UNPLANNED",1,"127364-OUT1"]
[228,"TASNETWORKSV5_20230130160736","2015-09-23T14:15:00","T_FAJB","T-FAJB","2013-08-21",1,-121.06003,"Out=Farrell-John Butters 220KV line. Energy <= 0MW","OUTAGE","OTHER","Farrell JohnButtrs 220kV LINE","REGULATED","INCLUDED",null,"UNPLANNED",1,"127364-OUT1"]
[229,"TASNETWORKSV5_20230130160736","2015-09-23T14:20:00","T_FAJB","T-FAJB","2013-08-21",1,-120.94212,"Out=Farrell-John Butters 220KV line. Energy <= 0MW","OUTAGE","OTHER","Farrell JohnButtrs 220kV LINE","REGULATED","INCLUDED",null,"UNPLANNED",1,"127364-OUT1"]
[230,"TASNETWORKSV5_20230130160736","2015-09-23T14:25:00","T_FAJB","T-FAJB","2013-08-21",1,-121.68,"Out=Farrell-John Butters 220KV line. Energy <= 0MW","OUTAGE","OTHER","Farrell JohnButtrs 220kV LINE","REGULATED","INCLUDED",null,"UNPLANNED",1,"127364-OUT1"]
[231,"TASNETWORKSV5_20230130160736","2015-09-23T14:30:00","T_FAJB","T-FAJB","2013-08-21",1,-121.68,"Out=Farrell-John Butters 220KV line. Energy <= 0MW","OUTAGE","OTHER","Farrell JohnButtrs 220kV LINE","REGULATED","INCLUDED",null,"UNPLANNED",1,"127364-OUT1"]
[232,"TASNETWORKSV5_20230130160736","2015-09-23T14:35:00","T_FAJB","T-FAJB","2013-08-21",1,-121.68,"Out=Farrell-John Butters 220KV line. Energy <= 0MW","OUTAGE","OTHER","Farrell JohnButtrs 220kV LINE","REGULATED","INCLUDED",null,"UNPLANNED",1,"127364-OUT1"]
[233,"TASNETWORKSV5_20230130160736","2015-09-23T14:40:00","T_FAJB","T-FAJB","2013-08-21",1,-121.64,"Out=Farrell-John Butters 220KV line. Energy <= 0MW","OUTAGE","OTHER","Farrell JohnButtrs 220kV LINE","REGULATED","INCLUDED",null,"UNPLANNED",1,"127364-OUT1"]
[234,"TASNETWORKSV5_20230130160736","2015-09-23T14:45:00","T_FAJB","T-FAJB","2013-08-21",1,-121.7,"Out=Farrell-John Butters 220KV line. Energy <= 0MW","OUTAGE","OTHER","Farrell JohnButtrs 220kV LINE","REGULATED","INCLUDED",null,"UNPLANNED",1,"127364-OUT1"]
[235,"TASNETWORKSV5_20230130160736","2015-09-23T14:50:00","T_FAJB","T-FAJB","2013-08-21",1,-121.68,"Out=Farrell-John Butters 220KV line. Energy <= 0MW","OUTAGE","OTHER","Farrell JohnButtrs 220kV LINE","REGULATED","INCLUDED",null,"UNPLANNED",1,"127364-OUT1"]
[236,"TASNETWORKSV5_20230130160736","2015-09-23T14:55:00","T_FAJB","T-FAJB","2013-08-21",1,-121.68,"Out=Farrell-John Butters 220KV line. Energy <= 0MW","OUTAGE","OTHER","Farrell JohnButtrs 220kV LINE","REGULATED","INCLUDED",null,"UNPLANNED",1,"127364-OUT1"]
[237,"TASNETWORKSV5_20230130160736","2015-09-23T15:00:00","T_FAJB","T-FAJB","2013-08-21",1,-137.61747,"Out=Farrell-John Butters 220KV line. Energy <= 0MW","OUTAGE","OTHER","Farrell JohnButtrs 220kV LINE","REGULATED","INCLUDED",null,"UNPLANNED",1,"127364-OUT1"]
[238,"TASNETWORKSV5_20230130160736","2015-09-23T15:05:00","T_FAJB","T-FAJB","2013-08-21",1,-173.42,"Out=Farrell-John Butters 220KV line. Energy <= 0MW","OUTAGE","OTHER","Farrell JohnButtrs 220kV LINE","REGULATED","INCLUDED",null,"UNPLANNED",1,"127364-OUT1"]
[239,"TASNETWORKSV5_20230130160736","2015-09-23T15:10:00","T_FAJB","T-FAJB","2013-08-21",1,-132.95954,"Out=Farrell-John Butters 220KV line. Energy <= 0MW","OUTAGE","OTHER","Farrell JohnButtrs 220kV LINE","REGULATED","INCLUDED",null,"UNPLANNED",1,"127364-OUT1"]
[240,"TASNETWORKSV5_20230130160736","2015-09-23T16:05:00","T_FATI","T-FATI","2013-08-21",1,-121.58,"Out=Farrell-Tribute 220KV line. Energy <= 0MW","OUTAGE","OTHER","Farrell Tribute 220kV LINE","REGULATED","INCLUDED",null,"UNPLANNED",1,"127365-OUT1"]
[241,"TASNETWORKSV5_20230130160736","2015-10-15T10:40:00","T::T_HA_GT_PM_4","T-HAPM_220","2014-07-31",1,-10.683960000000001,"Out = Hadspen to George Town or Hadspen to Palmerston 220 kV line, prevent poorly damped TAS North - South oscillations following fault and trip of Palmerston to Sheffield 220 kV line, Tamar CCGT out of service.","OUTAGE","OTHER","Palmerston Hadspen 1 220kV LINE","REGULATED","INCLUDED",null,"PLANNED",1,"126191-OUT1"]
[242,"TASNETWORKSV5_20230130160736","2015-10-15T10:45:00","T::T_HA_GT_PM_4","T-HAPM_220","2014-07-31",1,-10.683960000000001,"Out = Hadspen to George Town or Hadspen to Palmerston 220 kV line, prevent poorly damped TAS North - South oscillations following fault and trip of Palmerston to Sheffield 220 kV line, Tamar CCGT out of service.","OUTAGE","OTHER","Palmerston Hadspen 1 220kV LINE","REGULATED","INCLUDED",null,"PLANNED",1,"126191-OUT1"]
[243,"TASNETWORKSV5_20230130160736","2015-10-15T11:35:00","T::T_HA_GT_PM_4","T-HAPM_220","2014-07-31",1,-10.88613,"Out = Hadspen to George Town or Hadspen to Palmerston 220 kV line, prevent poorly damped TAS North - South oscillations following fault and trip of Palmerston to Sheffield 220 kV line, Tamar CCGT out of service.","OUTAGE","OTHER","Palmerston Hadspen 1 220kV LINE","REGULATED","INCLUDED",null,"PLANNED",1,"126191-OUT1"]
[244,"TASNETWORKSV5_20230130160736","2015-10-15T11:45:00","T::T_HA_GT_PM_4","T-HAPM_220","2014-07-31",1,-10.04655,"Out = Hadspen to George Town or Hadspen to Palmerston 220 kV line, prevent poorly damped TAS North - South oscillations following fault and trip of Palmerston to Sheffield 220 kV line, Tamar CCGT out of service.","OUTAGE","OTHER","Palmerston Hadspen 1 220kV LINE","REGULATED","INCLUDED",null,"PLANNED",1,"126191-OUT1"]
[245,"TASNETWORKSV5_20230130160736","2015-10-15T12:05:00","T::T_HA_GT_PM_4","T-HAPM_220","2014-07-31",1,-10.74159,"Out = Hadspen to George Town or Hadspen to Palmerston 220 kV line, prevent poorly damped TAS North - South oscillations following fault and trip of Palmerston to Sheffield 220 kV line, Tamar CCGT out of service.","OUTAGE","OTHER","Palmerston Hadspen 1 220kV LINE","REGULATED","INCLUDED",null,"PLANNED",1,"126191-OUT1"]
[246,"TASNETWORKSV5_20230130160736","2015-10-15T12:20:00","T::T_HA_GT_PM_4","T-HAPM_220","2014-07-31",1,-10.08239,"Out = Hadspen to George Town or Hadspen to Palmerston 220 kV line, prevent poorly damped TAS North - South oscillations following fault and trip of Palmerston to Sheffield 220 kV line, Tamar CCGT out of service.","OUTAGE","OTHER","Palmerston Hadspen 1 220kV LINE","REGULATED","INCLUDED",null,"PLANNED",1,"126191-OUT1"]
[247,"TASNETWORKSV5_20230130160736","2015-10-15T12:30:00","T::T_HA_GT_PM_4","T-HAPM_220","2014-07-31",1,-10.066050000000001,"Out = Hadspen to George Town or Hadspen to Palmerston 220 kV line, prevent poorly damped TAS North - South oscillations following fault and trip of Palmerston to Sheffield 220 kV line, Tamar CCGT out of service.","OUTAGE","OTHER","Palmerston Hadspen 1 220kV LINE","REGULATED","INCLUDED",null,"PLANNED",1,"126191-OUT1"]
[248,"TASNETWORKSV5_20230130160736","2015-10-16T09:15:00","T::T_HA_GT_PM_4","T-HAPM_220","2014-07-31",1,-11.34939,"Out = Hadspen to George Town or Hadspen to Palmerston 220 kV line, prevent poorly damped TAS North - South oscillations following fault and trip of Palmerston to Sheffield 220 kV line, Tamar CCGT out of service.","OUTAGE","OTHER","Palmerston Hadspen 2 220kV LINE","REGULATED","INCLUDED",null,"PLANNED",1,"126192-OUT1"]